Cogmind - Beta 12 @@@ ROGUE MODE // 2023.10.01 @ 21:23:20 Player: lyrabold Result: Escaped singularity! Performance ------------- Evolutions (9) 4500 Regions Visited (36) 7200 Robots Destroyed (955) 4775 Value Destroyed (46490) 46490 Prototype IDs (289) 5780 Alien Tech Used (14) 2800 Bonus (69357) 69357 TOTAL SCORE: 140902 Bonus ------- Triggered High Security 500 High Alert Combat Kills 22101 Follower Combat Kills 1647 Entered Garrisons 400 Network Hubs Disabled 600 Met Data Miner 300 Met Zhirov 300 Met Warlord at Base 500 MAIN.C Attacked Warlord 500 Warlord Defense Kills 1576 Built Enhanced Grunts 300 A7 Reached Mainframe 300 Used Core Reset Matrix 3000 Met Warlord at Research 2000 Scanned by Researcher 500 Destroyed MAIN.C Guards 500 Met MAIN.C 5000 Destroyed MAIN.C Shell 5000 Destroyed MAIN.C 10000 Met Architect 300 Destroyed A8 300 Destroyed Architect 15000 Win 3000 Friendly Fire -4267 Cogmind --------- Core Integrity 530/1850 Matter 230/300 Energy 99/100 System Corruption 0% Temperature Cool (0) Movement Core (50) Location Near Former Tau Ceti IV Parts ------- > --- POWER (3) -------- (None) > --- PROPULSION (3) --- (None) > --- UTILITY (13) ----- (None) > --- WEAPON (7) ------- (None) > --- INVENTORY (5) ---- Experimental Matter Compressor (500) Quantum Capacitor Microwarp Drive Peak State ------------ > --- POWER ------------ Particle Reactor Quantum Reactor Zero-point Reactor > --- PROPULSION ------- Advanced Heavy Siege Treads > --- UTILITY ---------- Cargo Storage Unit Experimental Core Analyzer Improved Armor Integrity Analyzer Improved Weapon Cycler Heavy Regenerative Plating Heavy Regenerative Plating Graphene Brace AEGIS Remote Shield Microwarp Drive > --- WEAPON ----------- Enhanced Quantum Rifle Enhanced Quantum Rifle Enhanced Nova Cannon Enhanced Nova Cannon Null Cannon KE Penetrator Linear Accelerator > --- INVENTORY -------- Particle Reactor Zero-point Reactor Wheel Compact Wheel Advanced Energy Well Experimental Energy Well Experimental Matter Compressor Layered Heavy Armor Plating Focal Shield AEGIS Remote Shield Long-range Tractor Beam Transdimensional Reconstructor Subatomic Replicator Spacefold Activator Enhanced Quantum Rifle Cooled Nova Cannon Battle Rifle Barrage Gun Barrage Gun Railgun Railgun Helical Railgun Helical Railgun RU-N14's Throwing Claymores v3 RU-N14's Throwing Claymores v3 RU-N14's Throwing Claymores v3 RU-N14's Throwing Claymores v3 RU-N14's Throwing Claymores v3 RU-N14's Throwing Claymores v3 [Rating: 233] Favorites ----------- Power Quantum Reactor Engine Light Angular Momentum Engine Power Core Enhanced Nuclear Core Reactor Quantum Reactor Propulsion Armored Huge Wheel Treads Light Treads Leg Aluminum Leg Wheel Armored Huge Wheel Utility Cargo Storage Unit Device Advanced Heat Sink Storage Cargo Storage Unit Processor Experimental Targeting Computer Hackware Advanced Hacking Suite Protection Heavy Regenerative Plating Artifact Microwarp Drive Weapon Enhanced Nova Cannon Energy Gun Enhanced Quantum Rifle Energy Cannon Enhanced Nova Cannon Ballistic Gun Flak Gun Ballistic Cannon Light Cannon Launcher Rocket Array Special Weapon RU-N14's Throwing Claymores v3 Impact Weapon Makeshift Hammer Slashing Weapon Makeshift Sword Special Melee Weapon Improved Datajack Build | -11 -10 -10 -10 -9 -8 -8 -8 -8 -7 -7 -7 -7 -6 -6 -6 -6 -6 -6 -5 -5 -5 -5 -4 -4 -4 -4 -4 -3 -3 -3 -3 -2 -2 -1 -1 -1 ------- Run | Jun Mat Min Exi Min Mat Gar Mat Gar Fac Low Low Dat Pro Fac Ext Cet Arc Hub Fac Upp Upp War Pro Fac Upp Upp Zhi Pro Res Qua Sec Res Tes Acc Com Ac0 Slots Evolved 18 | . . . . . 4 . . . 2 . . . . 2 . . . . 2 . . . . 2 . . . . 2 . . 2 . 2 . . Power 1 | . . . . . . . . . 1 . . . . . . . . . . . . . . . . . . . . . . . . . . . Propulsion 1 | . . . . . . . . . . . . . . . . . . . . . . . . . . . . . 1 . . . . . . . Utility 11 | . . . . . 3 . . . 1 . . . . 2 . . . . 2 . . . . 2 . . . . 1 . . . . . . . Weapon 5 | . . . . . 1 . . . . . . . . . . . . . . . . . . . . . . . . . . 2 . 2 . . Parts Attached 1129 | 7 8 5 7 9 39 27 43 2 30 11 10 . 10 54 6 7 17 43 79 9 10 24 11 43 9 5 3 11 29 56 96 82 44 68 211 4 Power 67 | 1 1 2 . 1 2 2 2 . 4 1 . . 1 4 . 1 2 3 2 . . 1 . . 1 . . . 3 . 7 5 3 5 13 . Engine 8 | 1 1 . . . 1 1 . . 1 . . . . 3 . . . . . . . . . . . . . . . . . . . . . . Core 17 | . . 2 . 1 1 1 2 . 3 1 . . . 1 . . 2 2 . . . . . . . . . . . . 1 . . . . . Reactor 42 | . . . . . . . . . . . . . 1 . . 1 . 1 2 . . 1 . . 1 . . . 3 . 6 5 3 5 13 . Propulsion 85 | 2 3 1 . 2 9 5 7 . 2 1 . . 3 1 . . . 3 . . . . . 1 . . . . 4 2 . 5 1 6 27 . Treads 27 | 2 1 . . 2 5 2 6 . . . . . . . . . . . . . . . . . . . . . . . . . 1 1 7 . Leg 3 | . 1 . . . . . . . . . . . 1 . . . . . . . . . . . . . . . . . . . . . 1 . Wheel 55 | . 1 1 . . 4 3 1 . 2 1 . . 2 1 . . . 3 . . . . . 1 . . . . 4 2 . 5 . 5 19 . Hover . | . . . . . . . . . . . . . . . . . . . . . . . . . . . . . . . . . . . . . Flight . | . . . . . . . . . . . . . . . . . . . . . . . . . . . . . . . . . . . . . Utility 564 | 2 1 1 . 2 11 9 9 . 10 1 5 . . 25 4 1 6 19 48 6 2 13 10 33 7 . 1 3 18 45 58 56 27 30 99 2 Device 374 | 1 . 1 . 1 3 5 6 . 6 1 4 . . 13 2 . 2 12 29 6 1 7 8 20 5 . . 3 15 42 29 39 24 22 67 . Storage 18 | 1 1 . . . 1 . . . 1 . . . . 1 1 . . . . . . . . . . . . . . . 3 1 . 2 6 . Processor 25 | . . . . . . 1 . . 1 . . . . 4 . . . 1 2 . . . 1 . . . . . . 1 3 6 . . 4 1 Hackware 8 | . . . . . 1 . 1 . . . . . . 1 . . . . . . . . . . . . . . 1 . 1 1 . 2 . . Protection 113 | . . . . 1 6 3 2 . 2 . 1 . . 6 1 1 4 6 17 . 1 6 1 13 2 . 1 . 2 2 9 3 3 2 18 . Artifact 26 | . . . . . . . . . . . . . . . . . . . . . . . . . . . . . . . 13 6 . 2 4 1 Weapon 413 | 2 3 1 7 4 17 11 25 2 14 8 5 . 6 24 2 5 9 18 29 3 8 10 1 9 1 5 2 8 4 9 31 16 13 27 72 2 Energy Gun 96 | . 1 . . . 2 . 3 . . . . . . 13 2 1 5 6 2 1 4 4 . 1 1 1 1 3 . . 18 7 5 7 8 . Energy Cannon 103 | . . . . . 4 1 2 . . . 1 . . . . 1 1 1 6 . . 1 . 4 . 3 1 1 1 4 13 6 3 19 29 1 Ballistic Gun 94 | 2 . . . . 7 1 16 1 8 5 2 . 3 4 . . 2 5 11 1 . 1 . . . . . . . . . 3 3 1 18 . Ballistic Cannon 34 | . 2 1 4 2 4 5 . . . . . . . . . . . . . . . . 1 4 . . . 1 2 3 . . 1 . 4 . Launcher 44 | . . . . . . 2 4 . 5 2 1 . 3 1 . . . 1 6 1 4 2 . . . 1 . 3 . . . . 1 . 7 . Special Weapon 12 | . . . 1 . . . . . . . . . . . . 1 . 2 . . . 1 . . . . . . . . . . . . 6 1 Impact Weapon 13 | . . . . . . . . . . . . . . 2 . 2 . 3 2 . . 1 . . . . . . 1 2 . . . . . . Slashing Weapon 12 | . . . 1 2 . 2 . 1 1 1 1 . . 3 . . . . . . . . . . . . . . . . . . . . . . Piercing Weapon . | . . . . . . . . . . . . . . . . . . . . . . . . . . . . . . . . . . . . . Special Melee Weapon 5 | . . . 1 . . . . . . . . . . 1 . . 1 . 2 . . . . . . . . . . . . . . . . . Unidentified Prototypes 34 | . . . 1 1 5 . 2 . . 1 . . 1 1 1 . 3 . . . . 4 1 . . . 1 . . 2 2 2 1 . 5 . Corrupted Parts 19 | . . . . . . . . . . . . . . . . . . 2 . . . . 1 . 1 . . . . . 4 . 2 1 8 . System Corruption 104 | . . . . . . . . . . . . . . . . . . 11 . . . . 1 . 1 . . . . . 11 . 15 9 56 . Parts Lost 104 | . 2 2 . 2 2 4 4 . 1 . 1 . . 13 . 1 1 12 1 1 . . . . . . . 1 2 4 5 11 6 10 18 . Power 23 | . . . . . 1 1 . . 1 . . . . 2 . . 1 3 1 . . . . . . . . . . . 3 5 1 2 2 . Propulsion 18 | . 1 1 . 2 1 1 2 . . . . . . . . . . 1 . . . . . . . . . . . . . 1 1 2 5 . Utility 41 | . . 1 . . . 2 2 . . . 1 . . 7 . 1 . 5 . 1 . . . . . . . 1 2 4 2 1 3 3 5 . Weapon 22 | . 1 . . . . . . . . . . . . 4 . . . 3 . . . . . . . . . . . . . 4 1 3 6 . Highest Loss Streak 6 | . 2 1 . 1 1 3 1 . 1 . 1 . . 3 . 1 1 6 1 1 . . . . . . . 1 1 2 2 3 2 4 5 . To Critical Strikes 1 | . . . . . . . . . . . . . . 1 . . . . . . . . . . . . . . . . . . . . . . Average Slot Usage (%) 85 | . 99 99 92 99 99 99 99 100 87 84 84 85 85 84 87 87 86 81 86 87 88 85 83 75 74 75 65 72 79 83 78 77 81 86 81 62 Engine 1 | . 14 1 . . 7 7 . . 3 . . . . 1 6 1 . . . . . . . . . . . . . . . . . . . . Core 4 | . . 12 14 13 1 1 9 9 9 20 21 21 16 10 12 12 11 9 . . . . . . . . . . . . . . . . . . Reactor 6 | . . . . . . . . . . . . . 5 3 . 4 6 6 15 16 16 13 11 10 9 10 10 10 12 13 12 7 11 10 10 5 Treads 3 | . 19 14 14 25 15 7 8 9 2 . . . . . . . . . . . . . . . . . . . . . . . . . . 5 Wheel 7 | . 3 13 14 2 2 10 8 9 7 7 7 7 7 6 6 6 6 5 5 5 5 5 5 5 5 5 5 5 9 9 9 7 7 8 7 . Device 14 | . 14 14 14 3 10 17 17 18 16 13 13 14 14 15 12 12 14 16 12 21 21 12 11 18 20 20 20 17 17 19 10 13 19 16 11 9 Storage 6 | . 14 14 14 14 9 9 9 9 7 7 7 7 7 6 6 6 6 6 5 5 5 5 5 5 5 5 5 5 4 4 4 4 4 5 4 2 Processor 6 | . . . . . . 1 9 9 7 7 7 7 7 12 12 6 6 4 7 11 11 11 11 10 10 10 10 10 9 5 2 7 8 7 7 12 Hackware 2 | . . . . . 5 . . . . . . . . 3 6 6 6 6 5 5 5 5 5 5 5 5 5 5 7 9 8 3 . . . . Protection 9 | . . . . 10 20 16 9 9 7 7 7 7 7 5 6 11 9 6 17 5 5 14 15 12 10 10 9 10 9 9 10 9 7 6 9 5 Energy Gun 5 | . 2 . . . . . . . . . . . . 12 12 11 11 12 5 4 4 5 11 5 5 4 . 4 1 . 11 14 9 5 6 . Energy Cannon 5 | . . . . . 5 18 . . . . . . . . . . . . 2 5 5 3 5 2 5 5 . 4 1 5 1 2 4 19 13 2 Ballistic Gun 6 | . 21 . . . 12 1 25 27 22 20 20 21 20 5 6 6 6 3 6 5 5 3 . . . . . . . . . 2 3 . 2 . Ballistic Cannon 2 | . 4 28 14 27 8 6 . . . . . . . . . . . . . . . . . 1 . . . . 2 5 . . 2 . . . Naked Turns 5 | . . . . . . . . . . . . . . . . . . . . . . . . . . . . . . . . . . . . 5 Heaviest Build 356 | 15 50 52 52 54 124 128 120 118 193 188 201 201 209 211 199 217 226 218 248 230 232 254 263 270 254 246 246 247 271 285 272 260 265 314 356 209 Greatest Support 120 | 40 40 20 10 40 40 20 12 12 28 28 28 28 28 28 28 28 28 28 28 28 28 28 28 28 28 28 28 28 44 44 44 44 44 48 120 120 Greatest Overweight (x) 31 | 1 4 5 5 5 11 12 9 9 11 6 7 7 7 7 7 7 8 7 8 8 8 9 9 9 9 8 8 8 6 6 6 13 9 25 31 1 Average Overweight (x) 6 | . 1 4 4 1 3 9 8 9 7 6 6 7 6 6 6 7 7 6 7 7 8 7 8 8 8 8 7 8 5 5 4 4 5 6 8 . Largest Inventory Capacity 30 | 8 20 20 20 20 25 25 25 25 30 30 30 30 30 30 30 30 30 30 30 30 30 30 30 30 30 30 30 30 30 30 30 30 30 30 30 20 Average Capacity 28 | 7 14 20 20 20 24 25 25 25 28 30 30 30 30 30 30 30 30 30 30 30 30 30 30 30 30 30 30 30 30 30 30 30 30 30 29 18 Most Carried 30 | 5 18 20 20 20 25 25 25 25 30 30 30 29 30 30 30 30 30 30 30 30 30 30 30 30 30 30 30 30 30 30 30 30 30 30 30 18 Average Carried 27 | 3 9 18 19 19 24 24 24 25 28 29 28 29 29 28 29 29 29 29 28 29 29 29 29 29 30 29 29 29 29 29 29 29 29 29 28 15 Final Capacity 30 | 8 20 20 20 20 25 25 25 25 30 30 30 30 30 30 30 30 30 30 30 30 30 30 30 30 30 30 30 30 30 30 30 30 30 30 30 5 Final Carried 30 | 5 18 20 19 20 25 25 25 25 30 30 29 29 30 28 30 30 30 24 30 30 30 30 30 30 30 30 30 30 29 29 30 28 30 30 30 5 Class Distribution -------------------- 16% | Hauler-Tank 12% | Hauler-Mutant 10% | Alien-Executioner 9% | Scavenger-Tank 7% | Scavenger-Mutant 6% | Scavenger-Executioner 6% | Alien-Mutant 5% | Hauler-Gunner 5% | Mutant 4% | Alien-Gunner 3% | Scavenger-Gunner 3% | Tank Dominant Class ---------------- Mutant | -10/Materials Scavenger-Mutant | -10/Mines Scavenger-Mutant | -10/Exiles Mutant | -9/Mines Scavenger-Tank | -8/Materials Tank | -8/Garrison Gunner | -8/Materials Gunner | -8/Garrison Hauler-Tank | -7/Factory Hauler-Tank | -7/Lower Caves Hauler-Tank | -7/Lower Caves Hauler-Tank | -7/Data Miner Hauler-Tank | -6/Proximity Caves Hauler-Gunner | -6/Factory Hauler-Gunner | -6/Extension Hauler-Tank | -6/Cetus Hauler-Mutant | -6/Archives Scavenger-Gunner | -6/Hub_04(d) Scavenger-Tank | -5/Factory Scavenger-Skirmisher | -5/Upper Caves Scavenger-Tank | -5/Upper Caves Hauler-Mutant | -5/Warlord Hauler-Tank | -4/Proximity Caves Hauler-Mutant | -4/Factory Hauler-Mutant | -4/Upper Caves Hauler-Mutant | -4/Upper Caves Hauler-Mutant | -4/Zhirov Hauler-Mutant | -3/Proximity Caves Hauler-Mutant | -3/Research Hauler-Mutant | -3/Quarantine Alien-Gunner | -3/Section 7 Alien-Gunner | -2/Research Scavenger-Gunner | -2/Testing Scavenger-Executioner | -1/Access Alien-Executioner | -1/Command Alien-Mutant | -1/Access_0 Resources | -11 -10 -10 -10 -9 -8 -8 -8 -8 -7 -7 -7 -7 -6 -6 -6 -6 -6 -6 -5 -5 -5 -5 -4 -4 -4 -4 -4 -3 -3 -3 -3 -2 -2 -1 -1 -1 ----------- Run | Jun Mat Min Exi Min Mat Gar Mat Gar Fac Low Low Dat Pro Fac Ext Cet Arc Hub Fac Upp Upp War Pro Fac Upp Upp Zhi Pro Res Qua Sec Res Tes Acc Com Ac0 Matter Collected 26363 | 312 410 308 48 269 1156 675 1722 95 1363 481 492 . 489 939 397 62 273 618 1563 268 145 470 100 1420 205 62 . 528 1098 1264 1067 940 1202 999 4923 . Remotely 6112 | . . . . . . . . . . . . . . . . . . 199 447 . . 288 . 686 83 . . 159 892 897 135 151 352 . 1823 . Salvage Created 54092 | 100 774 337 48 208 1593 1435 2249 118 1936 284 306 . 515 2498 540 208 576 1038 2093 279 204 584 385 1652 196 66 . 573 1393 1396 2679 638 2903 6739 17415 134 Parts 1909 | 5 35 25 . 9 98 79 126 10 106 14 13 . 14 72 24 4 33 62 96 15 14 18 18 68 9 7 . 15 44 53 83 11 93 193 442 1 Haulers Intercepted 24 | . 2 . . . 4 . 5 . 3 . . . . 2 . . . . 1 . . . . . . . . . 2 1 . . 1 3 . . Recyclers Shooed 25 | 1 . . . . . . 2 . . . . . . 4 . . . . 4 . . . . 2 . . . . 3 1 2 . . . 6 . Parts Field Recycled . | . . . . . . . . . . . . . . . . . . . . . . . . . . . . . . . . . . . . . Retrieved Matter . | . . . . . . . . . . . . . . . . . . . . . . . . . . . . . . . . . . . . . Parts Self-Destructed 102 | . . . . . . . . . . 16 13 . 20 . . . . . . 10 11 . 18 . 7 1 . 6 . . . . . . . . Prevented 19 | . . . . . . . . . . . . . . . . . . . . . . . . . 11 . . 8 . . . . . . . . Kills | -11 -10 -10 -10 -9 -8 -8 -8 -8 -7 -7 -7 -7 -6 -6 -6 -6 -6 -6 -5 -5 -5 -5 -4 -4 -4 -4 -4 -3 -3 -3 -3 -2 -2 -1 -1 -1 ------- Run | Jun Mat Min Exi Min Mat Gar Mat Gar Fac Low Low Dat Pro Fac Ext Cet Arc Hub Fac Upp Upp War Pro Fac Upp Upp Zhi Pro Res Qua Sec Res Tes Acc Com Ac0 Combat Hostiles Destroyed 723 | . 12 13 . 3 27 39 45 5 38 8 14 . 17 29 6 3 2 19 25 8 13 13 4 21 3 5 . 12 13 18 36 11 37 63 157 4 Guns 221 | . 11 . . . 10 2 30 5 25 3 11 . 12 25 6 3 2 15 6 2 . 2 1 . . . . . . . 19 6 9 10 6 . Cannons 246 | . 1 13 . 3 17 28 . . . . . . . . . . . . 3 2 1 . 1 15 2 . . 2 12 13 4 2 16 43 66 2 AOE 164 | . . . . . . 9 14 . 13 5 3 . 5 . . . . 4 8 4 12 9 . . . 5 . 5 . . . . 8 2 57 1 Classes Destroyed 27 | 2 6 1 . 1 3 2 3 . . . . . . . 1 . . 1 . . . 1 . . . . . . . . 1 2 2 . 1 . Worker 54 | . 1 . . 1 5 . 3 . 2 . . . . 6 . . . . 7 . . . . 2 . . . . . . 1 . 1 7 18 . Builder 45 | . 2 . . . 4 . 5 . 5 . . . . 1 . . . 4 7 . . . . 1 . . . . 1 3 . . 5 7 . . Tunneler 5 | 1 . 1 . 1 1 . . . . . . . . . . . . 1 . . . . . . . . . . . . . . . . . . Hauler 24 | . 2 . . . 4 . 5 . 3 . . . . 2 . . . . 1 . . . . . . . . . 2 1 . . 1 3 . . Recycler 47 | 1 1 2 . 2 1 . 1 . 4 . . . . 6 1 . . . 3 . . . . 3 . . . . 4 1 1 . . 6 10 . Carrier 22 | . . . . . . . . . . . . . . . . . . . . . . . . . . . . . . . . . . . 22 . Mechanic 22 | . . . . . 1 . . . 3 . . . . 1 . . . . . . . . . . . . . . . 1 . . 1 . 15 . Operator 19 | . 1 . . . . . . . 1 . . . . . 1 . 9 2 . . . . . 2 . . . . 1 . 1 . 1 . . . Drone 1 | . . . . . . . . . . . . . . . . . . . . . . . . . . . . . . . . 1 . . . . Watcher 37 | . 3 . . . 1 . 4 . 2 . . . . 1 1 . . 3 2 . . . . . . . . . 1 3 2 . 2 7 5 . Swarmer 105 | . . 9 . . 7 10 . 3 4 . 8 . 5 4 . . . 1 4 5 9 2 . 5 . 5 . 5 2 . 10 . . 4 3 . Cutter 2 | . . . . . . 2 . . . . . . . . . . . . . . . . . . . . . . . . . . . . . . Saboteur 11 | . . . . . . . . . . . . . . . . . . . . . . . . . . . . . . . . . 1 . 10 . Grunt 271 | . 12 4 . 2 12 16 29 . 21 5 6 . 6 12 3 1 . 5 3 . 3 7 2 5 1 . . 1 5 5 4 . 22 29 50 . Brawler 24 | . . . . . . . 5 . 2 1 . . 2 . . . . . . . . . . . . . . . . . . . 2 1 11 . Duelist 22 | . . . . . . . 2 2 1 1 . . 1 . . . . . . . . . 1 . . . . . . 1 . . 3 2 8 . Protector 10 | . . . . . . . 3 . . . . . . . . . . 1 . . . . . . . . . . . . . . . . 6 . Researcher 2 | . . . . . . . . . . . . . . . . . . . . . . . . . . . . . . . . . 2 . . . Sentry 68 | . . . . . 7 8 5 . 4 . . . 2 4 2 . 2 6 5 . . . . 4 . . . 1 1 . 4 1 3 3 6 . Specialist 3 | . . . . . . . . . . . . . . . . . . 1 . . . . . . . . . . . . 2 . . . . . Hunter 63 | . . . . . 1 2 1 . 1 . . . . 5 . 1 . 1 10 1 1 2 . 4 2 . . 4 2 2 2 2 3 8 8 . Programmer 89 | . . . . . . 1 . . 5 1 . . 1 4 . . . 2 3 2 . 1 . 4 . . . 1 3 10 9 . 3 15 24 . Heavy 1 | . . . . . . . . . . . . . . . . . . . . . . . . . . . . . . . 1 . . . . . Behemoth 4 | . . . . . . . . . . . . . . . 1 . . . . . . . 1 . . . . . . . 1 . . 1 . . Cetus Guard 1 | . . . . . . . . . . . . . . . . 1 . . . . . . . . . . . . . . . . . . . . S7 Guard 1 | . . . . . . . . . . . . . . . . . . . . . . . . . . . . . . . 1 . . . . . M Guard 2 | . . . . . . . . . . . . . . . . . . . . . . . . . . . . . . . . . . . 2 . Enhanced Grunt 3 | . . . . . . . . . . . . . . . . . 1 . . . . . . . . . . . . . . . . . . 2 Lightning 4 | . . . . . . . . . . . . . . . . . . 2 2 . . . . . . . . . . . . . . . . . Combat Programmer 2 | . . . . . . . . . . . . . . . . . . . . . . . . . . . . . . . . . . . 2 . Investigator 4 | . . . . . . . . . . . . . . . . . . . . . . . . . . . . . . . . . 1 . 3 . Striker 13 | . . . . . . . . . . . . . . . . . . . . . . . . . . . . . . . . 6 . . 7 . Executioner 22 | . . . . . . . . . . . . . . . . . . . . . . 1 . . . . . . . . 2 1 . . 18 . Packrat 1 | . . . . . . . . . . . . . . . . . . . . 1 . . . . . . . . . . . . . . . . Assembled 2 | . . . . 1 . . . . . . . . . . . . . . . . . . . . . . . . . . . . 1 . . . Guerrilla 1 | . . . . . . . . . . . . . . . . 1 . . . . . . . . . . . . . . . . . . . . Best Kill Streak 49 | 2 4 8 . 2 7 7 16 3 7 4 4 . 4 7 2 3 3 9 11 5 5 7 3 5 2 5 . 4 9 8 5 3 20 10 49 4 Combat Bots Only 35 | . 4 6 . 1 4 7 10 3 5 4 4 . 4 4 2 3 2 6 4 5 5 7 3 5 2 5 . 4 9 6 5 3 9 7 35 4 Max Kills in Single Turn 9 | 1 3 1 . 1 2 3 4 2 3 2 2 . 2 1 1 1 1 3 7 4 4 4 1 1 1 4 . 3 1 2 1 1 5 4 9 1 Gunslinging 1 | . . . . . . . . 1 1 . 1 . 1 . . . . . . . . . . . . . . . . . . . . . . . Exploded 6 | . . . . . . 3 3 . 3 2 2 . 2 . . . . 2 3 4 4 4 . . . 4 . 3 . . . . 2 2 6 1 Melee . | . . . . . . . . . . . . . . . . . . . . . . . . . . . . . . . . . . . . . Uniques/NPCs Destroyed 5 | . . . . . . . . . . . . . . . . . 1 . . . . . . . . . . . . . . . . . 2 2 A7 (-6/Archives) MAIN.C Shell (-1/Command) MAIN.C (-1/Command) A8 (-1/Access_0) Architect (-1/Access_0) Combat | -11 -10 -10 -10 -9 -8 -8 -8 -8 -7 -7 -7 -7 -6 -6 -6 -6 -6 -6 -5 -5 -5 -5 -4 -4 -4 -4 -4 -3 -3 -3 -3 -2 -2 -1 -1 -1 -------- Run | Jun Mat Min Exi Min Mat Gar Mat Gar Fac Low Low Dat Pro Fac Ext Cet Arc Hub Fac Upp Upp War Pro Fac Upp Upp Zhi Pro Res Qua Sec Res Tes Acc Com Ac0 Damage Taken 42049 | . 615 468 . 182 1278 962 1573 24 1251 66 527 . 300 1783 201 116 183 2551 1559 199 115 372 645 958 61 79 . 640 1378 1531 3341 4445 2749 3159 7833 905 Core 4725 | . 60 57 . 31 73 64 154 . 225 . 59 . 40 112 40 43 . 197 92 3 . 22 48 51 17 . . 64 59 48 795 1314 122 256 609 70 Absorbed by Shields 13932 | . . . . . 36 274 15 . 420 23 191 . 109 152 59 9 . 172 57 18 44 . . 362 23 28 . 239 498 566 566 . 754 932 7515 870 Reduced by Siege Mode 163 | . . . . . . . . . . . . . . . . . . . . . . . . . . . . . . . . . . . 111 52 Redirected to Shielding 225 | . . . . . . . . . . . . . . . . . . . 53 . . . . 78 . . . . . . . 72 . . . 22 Regen/Repaired (Parts) 10253 | . 122 . . . 275 . 168 . 121 . . . . 213 . . . . . . . 361 . . . . . . . 640 798 988 986 989 4560 32 Core Remaining (%) 54 | 100 . . . 40 . . . 47 . . . . 53 . . . . 53 . . . . 83 . . . . 88 . . 39 . 13 . . 28 Volleys Fired 1939 | 7 67 29 . 13 90 70 103 5 84 19 25 . 29 90 29 7 107 58 100 20 12 13 13 84 10 5 . 23 49 72 127 43 81 110 325 20 Largest 7 | 2 2 2 . 2 3 3 3 3 3 3 3 . 3 3 3 3 3 3 3 3 3 3 3 2 1 1 . 2 1 3 3 5 5 7 7 7 Hottest 704 | 40 70 70 . 70 124 104 144 81 81 81 98 . 84 236 160 160 160 226 213 211 174 258 258 170 80 98 . 150 90 286 300 321 384 630 704 130 Shots Fired 5309 | 14 129 59 . 26 258 172 281 15 228 45 65 . 73 265 80 19 118 139 164 34 13 30 39 96 12 6 . 25 49 165 303 148 322 630 1261 26 Gun 2769 | 14 118 . . . 167 8 264 15 216 39 60 . 66 264 80 18 103 128 110 13 1 18 26 27 2 1 . 3 . . 237 117 208 173 273 . Cannon 2412 | . 11 59 . 26 91 158 4 . . . 1 . . . . 1 14 3 46 17 1 8 13 69 10 3 . 18 49 165 66 31 104 457 968 19 Launcher 116 | . . . . . . 6 13 . 12 6 4 . 7 1 . . . 4 8 4 11 4 . . . 2 . 4 . . . . 10 . 20 . Special 12 | . . . . . . . . . . . . . . . . . 1 4 . . . . . . . . . . . . . . . . . 7 Kinetic 1809 | 14 114 59 . 26 205 54 259 15 216 39 60 . 66 78 28 6 7 50 74 7 1 4 . 35 . . . 2 46 80 1 20 80 30 133 . Thermal 2355 | . 15 . . . 53 112 5 . . . 1 . . 186 51 12 96 81 52 23 1 22 39 27 2 4 . 3 . 80 279 128 228 395 441 19 Explosive 123 | . . . . . . 6 13 . 12 6 4 . 7 1 . . . 4 8 4 11 4 . . . 2 . 4 . . . . 10 . 20 7 Electromagnetic 1017 | . . . . . . . 4 . . . . . . . 1 1 14 . 30 . . . . 34 10 . . 16 3 5 23 . 4 205 667 . Robot Hit Streak 49 | 3 9 5 . 4 20 15 25 8 19 7 7 . 9 26 18 15 17 13 20 11 9 5 28 34 5 . . 6 6 12 19 11 21 38 49 14 Robot Miss Streak 11 | 1 3 4 . 7 7 6 5 5 5 7 11 . 7 6 3 2 3 5 2 4 1 3 2 2 2 . . 2 2 7 4 8 7 3 4 2 Penetration Max 1 | . . . . . 1 . . . . . . . . . . . . 1 1 . . . . 1 . . . . . . . 1 1 . 1 . Secondary Targets 25 | . 1 . . . . . 2 2 2 . 5 . 1 5 1 . . 2 . . . . . . . . . . . . 3 1 . . . . Max Gunslinging Chain 1 | . 1 . . . . . 1 1 1 . 1 . 1 1 1 . . 1 . . . . . . . . . . . . 1 1 . . . . Capacitor 32 | . . . . . . . . . . . . . . . . . . . . . . . . . . . . . . . . . . . 18 14 Shots Hit Robots 3351 | 9 84 34 4 13 135 105 196 12 169 30 56 . 61 215 61 17 84 89 129 14 7 15 35 69 7 . . 16 38 86 190 89 208 297 755 22 Core Hits 2310 | 3 37 18 2 9 69 87 178 16 216 28 65 . 83 145 37 10 44 97 70 12 18 38 9 32 4 9 . 26 17 29 77 39 118 168 482 18 Critical Kills 22 | . . . . . . . 1 . . . . . . . . . . 3 4 . . 1 . . . . . . . 3 . . 2 2 5 1 Critical Parts Destroyed 15 | . . . . . . . . . . . . . . . 1 . . 1 8 . . 1 1 . . . . . 2 1 . . . . . . Critical Strikes 153 | . . 2 . . 5 1 1 . . . . . . 5 1 1 5 5 17 . . 2 2 9 2 . . 3 7 9 36 3 12 12 12 1 Burn 64 | . . . . . . . . . . . . . . 5 . 1 5 1 . . . . . . . . . . . . 36 3 7 6 . . Meltdown 13 | . . . . . . . . . . . . . . . . . . . . . . 1 . . . . . . . 3 . . 2 2 4 1 Destroy 24 | . . . . . . . 1 . . . . . . . 1 . . 4 12 . . 1 2 . . . . . . . . . . . 3 . Blast 24 | . . 2 . . 5 . . . . . . . . . . . . . . . . . . 4 . . . . 3 5 . . 3 2 . . Corrupt 24 | . . . . . . . . . . . . . . . . . . . 5 . . . . 5 2 . . 3 2 . . . . 2 5 . Smash 3 | . . . . . . . . . . . . . . . . . . . . . . . . . . . . . 2 1 . . . . . . Sever 1 | . . . . . . 1 . . . . . . . . . . . . . . . . . . . . . . . . . . . . . . Melee Attacks 113 | . . . 21 3 . 14 . . 1 1 2 . . 9 . 4 2 3 3 . . 23 . . . . . . 11 16 . . . . . . Impact 61 | . . . . . . . . . . . . . . 2 . 4 . 3 2 . . 23 . . . . . . 11 16 . . . . . . Slashing 47 | . . . 20 3 . 14 . . 1 1 2 . . 6 . . . . . . . . . . . . . . . . . . . . . . Piercing . | . . . . . . . . . . . . . . . . . . . . . . . . . . . . . . . . . . . . . Sneak Attacks 18 | . . . . 2 . . . . . . . . . 2 . . 2 . 1 . . . . . . . . . 7 4 . . . . . . Combat Hostiles . | . . . . . . . . . . . . . . . . . . . . . . . . . . . . . . . . . . . . . Follow-up Attacks . | . . . . . . . . . . . . . . . . . . . . . . . . . . . . . . . . . . . . . Damage Inflicted 137312 | 102 1405 766 210 333 2817 3451 5542 162 4986 1048 1070 . 1700 4716 1425 390 2266 3639 5933 862 1439 1435 939 4029 314 303 . 1300 3139 4360 5331 2241 10273 13276 44347 1763 Guns 44788 | 102 1028 . . . 1585 86 3538 162 3074 497 823 . 959 4650 1425 390 1851 2408 2298 274 . 294 572 549 . . . 23 . . 4305 1960 3608 3017 5310 . Cannons 57833 | . 57 756 . 197 1218 2426 95 . . . . . . . . . 136 . 1611 190 31 141 367 3480 314 . . 866 2454 3946 1026 281 2898 9946 24421 976 Explosions 32554 | . 308 . . . . 631 1909 . 1864 551 247 . 741 . . . 279 1231 2024 398 1408 1000 . . . 303 . 411 . . . . 3767 313 14616 553 Melee 1819 | . . . 210 136 . 308 . . . . . . . 66 . . . . . . . . . . . . . . 685 414 . . . . . . Ramming 84 | . 12 10 . . 14 . . . 48 . . . . . . . . . . . . . . . . . . . . . . . . . . . Kinetic 29425 | 102 959 756 . 197 2046 631 3491 162 3074 497 823 . 959 1113 512 112 87 907 1269 107 . 35 . 2166 . . . 223 2310 1779 . 363 1538 570 2637 . Thermal 50395 | . 126 . . . 757 1881 425 . . . . . . 3537 913 278 2043 1501 1498 357 31 400 939 549 . . . 23 . 1948 4894 1878 4923 8088 12430 976 Explosive 30171 | . 308 . . . . 631 1531 . 1864 551 247 . 741 . . . . 1231 2024 398 1408 1000 . . . 303 . 411 . . . . 3767 . 13203 553 Electromagnetic 25184 | . . . . . . . 95 . . . . . . . . . 136 . 1142 . . . . 1314 314 . . 643 144 219 437 . 45 4618 16077 . Impact 1099 | . . . . . . . . . . . . . . . . . . . . . . . . . . . . . 685 414 . . . . . . Slashing 954 | . . . 210 136 . 308 . . . . . . . 66 . . . . . . . . . . . . . . . . . . . . . 234 Piercing . | . . . . . . . . . . . . . . . . . . . . . . . . . . . . . . . . . . . . . Highest Corruption 85 | . 2 2 2 2 . 1 1 1 . 1 1 . . 7 7 7 7 25 1 1 1 1 1 1 2 2 2 3 3 3 12 . 22 15 85 . Average Corruption 12 | . 2 2 2 2 . 1 1 1 . 1 1 . . 3 7 7 6 8 1 1 1 1 1 1 1 2 2 2 2 1 3 . 16 10 45 . Corruption Purged 111 | . . . . . . . . . . . 1 . . . . . 7 . . . . . . . . . . . . 3 . . . . 100 . Corruption Blocked 4 | . . . . . . . . . . . . . . . . . . . . . . . . . . . . . . . . 4 . . . . Effects 1001 | . 11 14 9 13 . 13 18 2 . 5 7 . . 33 59 9 14 26 8 8 10 . . 4 7 11 6 9 5 20 49 . 36 55 540 . Message Errors 194 | . 4 1 1 2 . 4 1 . . 2 1 . . 10 14 4 3 2 . 2 1 . . 1 1 2 1 . . 5 12 . 7 10 103 . Matter Fused 226 | . 1 3 2 1 . 2 4 1 . 3 4 . . 13 13 1 3 7 3 2 2 . . 1 2 5 2 4 2 2 10 . 8 16 109 . Heat Flow Errors 92 | . 2 1 1 3 . 2 4 1 . . . . . 2 6 1 . 2 3 1 3 . . . . . . 1 2 4 6 . 4 4 39 . Energy Discharges 112 | . . 4 3 3 . . 2 . . . 2 . . 5 9 . 3 3 2 1 3 . . 1 . 2 1 2 1 2 5 . 6 5 47 . Parts Rejected 6 | . . . . 1 . . . . . . . . . . . . . 3 . . . . . . . . . . . . 1 . . . 1 . Parts Fused 14 | . 1 . . 1 . 1 . . . . . . . 1 2 . . . . . . . . . . 1 . . . . 1 . . . 6 . Data Loss (minor) 101 | . 1 . 1 1 . . 2 . . . . . . 2 6 3 1 1 . 1 . . . 1 2 . 2 . . 3 5 . 5 6 58 . Data Loss (major) 41 | . . 1 1 . . 1 1 . . . . . . . 4 . 1 3 . . . . . . . . . . . 4 4 . . . 21 . Misfires 44 | . 1 2 . . . 1 2 . . . . . . . 2 . 2 2 . 1 . . . . 2 1 . 1 . . 2 . 2 1 22 . Alerts 21 | . . 1 . 1 . 2 . . . . . . . . 2 . . 1 . . . . . . . . . . . . . . . 5 9 . Misdirections 2 | . . . . . . . . . . . . . . . . . . . . . . . . . . . . . . . . . . . 2 . Weapon Failures 148 | . 1 1 . . . . 2 . . . . . . . 1 . 1 2 . . 1 . . . . . . 1 . . 3 . 4 8 123 . Overload Shots 8 | . . . . . . . . . . . . . . . . . . . . . . . . . . . . . . . 8 . . . . . Overflow Damage 4245 | . 54 22 . . 4 56 126 . 33 . 8 . 16 26 . . . 5 142 10 146 . . 417 . 25 . 52 757 639 39 . 154 340 1150 24 Projectiles 2301 | . . 22 . . 4 31 . . . . . . . . . . . . 48 . . . . 417 . . . 52 247 370 39 . 126 340 587 18 Explosions 1121 | . 54 . . . . 25 126 . 15 . 8 . 16 . . . . 5 94 10 146 . . . . 25 . . . . . . 28 . 563 6 Melee 823 | . . . . . . . . . 18 . . . . 26 . . . . . . . . . . . . . . 510 269 . . . . . . Knockbacks 104 | . 1 13 . 3 1 14 . . 1 . . . . . . . . . . . . . . 14 . . . 1 17 18 . . 12 6 3 . Impact 9 | . . 1 . . . . . . 1 . . . . . . . . . . . . . . . . . . . 4 3 . . . . . . Kinetic 82 | . 1 9 . 3 1 14 . . . . . . . . . . . . . . . . . 9 . . . 1 12 14 . . 11 4 3 . Secondary 13 | . . 3 . . . . . . . . . . . . . . . . . . . . . 5 . . . . 1 1 . . 1 2 . . Self-Inflicted Damage 541 | . . . . . . . 28 . 134 . . . . . . . 38 . . . 27 . . . . 27 . 112 . . . . 95 80 . . Shots 16 | . . . . . . . 1 . 5 . . . . . . . 1 . . . 1 . . . . 1 . 5 . . . . 1 1 . . Rammed 8 | . 3 2 . . 2 . . . 1 . . . . . . . . . . . . . . . . . . . . . . . . . . . Targets Rammed 8 | . 3 2 . . 2 . . . 1 . . . . . . . . . . . . . . . . . . . . . . . . . . . Kicked . | . . . . . . . . . . . . . . . . . . . . . . . . . . . . . . . . . . . . . Crushed . | . . . . . . . . . . . . . . . . . . . . . . . . . . . . . . . . . . . . . Highest Temperature 358 | . 102 245 203 240 139 220 267 182 98 66 139 . 78 264 233 235 74 358 341 193 211 343 317 141 8 78 . 241 262 231 186 181 181 178 178 158 Average Temperature 99 | . 19 62 107 93 35 37 69 92 15 30 40 . 21 63 48 135 29 87 135 70 102 124 144 56 5 33 . 70 75 72 73 111 138 124 123 113 Received Heat Transfer 5960 | . 333 105 . 24 423 450 909 . 341 19 151 . 103 457 52 18 9 432 110 . . 48 87 74 6 . . 6 117 184 349 27 464 168 494 . Effects 6 | . . . . . . . . . . . . . . . . . . 3 3 . . . . . . . . . . . . . . . . . Interference 5 | . . . . . . . . . . . . . . . . . . 2 3 . . . . . . . . . . . . . . . . . Damage (minor) 1 | . . . . . . . . . . . . . . . . . . 1 . . . . . . . . . . . . . . . . . . Siege Activations 5 | . . . . . . . . . . . . . . . . . . . . . . . . . . . . . . . . . . . 3 2 Total Turns 193 | . . . . . . . . . . . . . . . . . . . . . . . . . . . . . . . . . . . 175 18 Longest Duration 130 | . . . . . . . . . . . . . . . . . . . . . . . . . . . . . . . . . . . 130 11 Robots Corrupted 62 | . . . . . . . 1 . . . . . . . . . . . 8 . . . . 6 1 . . 5 1 2 1 . . 6 31 . Combat Hostiles 55 | . . . . . . . 1 . . . . . . . . . . . 8 . . . . 6 1 . . 5 1 2 1 . . 6 24 . Parts Fried 284 | . . . . . . . 2 . . . . . . . . . . . 14 . . . . 8 3 . . 6 12 6 3 . . 54 176 . Impact Corruptions 31 | . . . . . . . . . 1 . . . . . . . . . . . . . . 4 . . . . 17 9 . . . . . . Robots Melted 40 | . . . . . . . . . . . . . . 4 . . . . . . . 2 2 . . . . . . 3 13 3 4 3 5 1 Combat Hostiles 37 | . . . . . . . . . . . . . . 4 . . . . . . . 2 2 . . . . . . 3 12 3 4 2 4 1 Parts Melted 230 | . 1 . . . . 4 . . . . . . . 28 2 5 1 4 3 . . 8 7 2 . . . . . 7 83 12 20 28 15 . Heat Transferred 66170 | . 275 . . . 1036 2205 324 . . . . . . 7424 1698 622 3399 2402 1923 435 50 570 1438 832 . . . 37 . 1628 12530 3726 7060 8283 7621 652 Parts Sabotaged . | . . . . . . . . . . . . . . . . . . . . . . . . . . . . . . . . . . . . . Parts Stolen . | . . . . . . . . . . . . . . . . . . . . . . . . . . . . . . . . . . . . . Parts Stripped . | . . . . . . . . . . . . . . . . . . . . . . . . . . . . . . . . . . . . . Power Chain Reactions 17 | . . . . . . . . . . . . . . . . . 1 . . . . . . . . . . . . . . . 1 1 14 . Missiles Intercepted 3 | . . . . . . . . . . . . . . . . . . . . . . . . . . . . . . . . . . . 3 . Alert | -11 -10 -10 -10 -9 -8 -8 -8 -8 -7 -7 -7 -7 -6 -6 -6 -6 -6 -6 -5 -5 -5 -5 -4 -4 -4 -4 -4 -3 -3 -3 -3 -2 -2 -1 -1 -1 ------- Run | Jun Mat Min Exi Min Mat Gar Mat Gar Fac Low Low Dat Pro Fac Ext Cet Arc Hub Fac Upp Upp War Pro Fac Upp Upp Zhi Pro Res Qua Sec Res Tes Acc Com Ac0 Peak Influence 6270 | 10 197 372 . 46 357 1770 1515 1152 1355 . . . . 437 483 302 339 455 859 . . . . 536 . . . . 385 311 634 543 1524 2542 6270 . Initial 1626 | . 6 65 . . 1 201 862 976 604 . . . . 81 196 224 120 63 216 . . . . 18 . . . . 74 159 162 303 305 847 1626 . Average 1329 | 4 63 168 . 7 175 952 1262 1074 842 . . . . 142 262 270 220 203 499 . . . . 162 . . . . 184 184 418 223 1173 1622 5562 . Maximum Alert Level 5 | . . 1 . . 1 5 4 4 4 . . . . 2 2 1 1 2 3 . . . . 2 . . . . 1 1 2 2 4 5 5 . Low Security (%) 30 | 100 100 70 . 100 69 . . . . . . . . 77 40 6 61 55 . . . . . 80 . . . . 53 62 4 44 . . . . Level 1 16 | . . 29 . . 30 15 . . . . . . . 15 45 93 38 39 46 . . . . 1 . . . . 46 37 26 49 8 . . . Level 2 7 | . . . . . . 11 . . 24 . . . . 6 13 . . 5 21 . . . . 17 . . . . . . 68 5 2 . . . Level 3 8 | . . . . . . 42 22 55 63 . . . . . . . . . 32 . . . . . . . . . . . . . 4 22 . . Level 4 8 | . . . . . . 23 77 44 11 . . . . . . . . . . . . . . . . . . . . . . . 84 24 . . Level 5 13 | . . . . . . 6 . . . . . . . . . . . . . . . . . . . . . . . . . . . 52 41 . High Security 14 | . . . . . . . . . . . . . . . . . . . . . . . . . . . . . . . . . . . 58 . Max Security . | . . . . . . . . . . . . . . . . . . . . . . . . . . . . . . . . . . . . . Squads Dispatched 148 | . 4 1 . . 4 . 11 . 18 . . . . 12 1 . . 10 9 . . . . 4 . . . . 1 5 8 . 13 11 36 . Investigation 23 | . 3 1 . . 2 . 4 . 3 . . . . 3 . . . 3 2 . . . . 1 . . . . . . . . 1 . . . Extermination 29 | . . . . . . . . . 5 . . . . 3 . . . 2 1 . . . . 1 . . . . 1 5 4 . 3 4 . . Reinforcement 26 | . 1 . . . . . 1 . 3 . . . . 3 1 . . 5 3 . . . . 1 . . . . . . 3 . 4 1 . . Assault 58 | . . . . . . . 3 . 3 . . . . . . . . . 3 . . . . 1 . . . . . . 1 . 5 6 36 . Garrison 12 | . . . . . 2 . 3 . 4 . . . . 3 . . . . . . . . . . . . . . . . . . . . . . Intercept . | . . . . . . . . . . . . . . . . . . . . . . . . . . . . . . . . . . . . . Searches Triggered . | . . . . . . . . . . . . . . . . . . . . . . . . . . . . . . . . . . . . . Data Miner Redirects 12 | . . . . . . . . . . . . . . 2 . . . . 3 . . . . 2 . . . . . . 1 . 2 2 . . Construction Impeded 8 | . . . . . . . 1 . 1 . . . . . . . . 1 3 . . . . . . . . . . . 1 . 1 . . . Haulers Reinforced 3 | . . . . . . . . . 1 . . . . 1 . . . . . . . . . . . . . . . . . . . 1 . . Active Scanning Responses . | . . . . . . . . . . . . . . . . . . . . . . . . . . . . . . . . . . . . . Cargo Convoy Interrupts 1 | . . . . . . . . . . . . . . . . . . . 1 . . . . . . . . . . . . . . . . . Stealth | -11 -10 -10 -10 -9 -8 -8 -8 -8 -7 -7 -7 -7 -6 -6 -6 -6 -6 -6 -5 -5 -5 -5 -4 -4 -4 -4 -4 -3 -3 -3 -3 -2 -2 -1 -1 -1 --------- Run | Jun Mat Min Exi Min Mat Gar Mat Gar Fac Low Low Dat Pro Fac Ext Cet Arc Hub Fac Upp Upp War Pro Fac Upp Upp Zhi Pro Res Qua Sec Res Tes Acc Com Ac0 Distress Signals 54 | . 1 . . . 3 . 4 . 1 . . . . 2 3 3 . 2 . . . . . 1 . . . . . 1 2 13 2 1 15 . Communications Jammed 105 | . . . . . . . . . . . . . . . . . . . . . . . . . . . . . 7 30 . 11 14 43 . . Distress Signals 94 | . . . . . . . . . . . . . . . . . . . . . . . . . . . . . 7 30 . 3 14 40 . . Times Spotted 1029 | . 24 15 . 18 42 35 53 5 54 7 15 . 20 40 18 10 33 38 27 4 7 35 4 18 3 5 . 11 17 30 45 47 65 71 208 5 Peak Tracking Total 19 | . 5 3 . 11 5 5 9 3 6 4 4 . 5 5 5 8 2 7 4 5 5 11 3 4 2 5 . 4 8 6 6 17 9 7 19 4 Tactical Retreats 31 | . . . . 1 2 1 . . 1 . 3 . 1 1 2 . . 1 1 . . 1 . . . . . . . 1 1 7 1 1 5 . Traps | -11 -10 -10 -10 -9 -8 -8 -8 -8 -7 -7 -7 -7 -6 -6 -6 -6 -6 -6 -5 -5 -5 -5 -4 -4 -4 -4 -4 -3 -3 -3 -3 -2 -2 -1 -1 -1 ------- Run | Jun Mat Min Exi Min Mat Gar Mat Gar Fac Low Low Dat Pro Fac Ext Cet Arc Hub Fac Upp Upp War Pro Fac Upp Upp Zhi Pro Res Qua Sec Res Tes Acc Com Ac0 Traps Triggered 38 | . 3 . . . . 10 1 1 . . . . . 6 . . . 3 . . . . . . . . . . . 2 1 . . 1 10 . Indirectly . | . . . . . . . . . . . . . . . . . . . . . . . . . . . . . . . . . . . . . Trap Hack Attempts . | . . . . . . . . . . . . . . . . . . . . . . . . . . . . . . . . . . . . . Triggered . | . . . . . . . . . . . . . . . . . . . . . . . . . . . . . . . . . . . . . Disarmed . | . . . . . . . . . . . . . . . . . . . . . . . . . . . . . . . . . . . . . Reprogrammed 8 | . . . . . . . . . . . . . . . . . . . . . . . . . . . . . 8 . . . . . . . Reused 1 | . . . . . . . . . . . . . . . . . . . . . . . . . . . . . 1 . . . . . . . Traps Extracted . | . . . . . . . . . . . . . . . . . . . . . . . . . . . . . . . . . . . . . Installed . | . . . . . . . . . . . . . . . . . . . . . . . . . . . . . . . . . . . . . Triggered 12 | . . . . . . . . . . 1 . . 1 . . . . . 2 . . 3 . . 2 1 . . 1 . . . . . 1 . Machines | -11 -10 -10 -10 -9 -8 -8 -8 -8 -7 -7 -7 -7 -6 -6 -6 -6 -6 -6 -5 -5 -5 -5 -4 -4 -4 -4 -4 -3 -3 -3 -3 -2 -2 -1 -1 -1 ---------- Run | Jun Mat Min Exi Min Mat Gar Mat Gar Fac Low Low Dat Pro Fac Ext Cet Arc Hub Fac Upp Upp War Pro Fac Upp Upp Zhi Pro Res Qua Sec Res Tes Acc Com Ac0 Machines Disabled 81 | . 2 . . . . 7 4 . 6 . . . 1 . 5 1 3 1 6 . . . . 2 . . . . 1 6 12 2 6 6 10 . Max in Single Turn 6 | . 2 . . . . 2 3 . 6 . . . . . 1 1 1 1 1 . . . . 1 . . . . 1 1 1 1 2 1 2 . Garrison Access 9 | . . . . . . . . . . . . . . . . . . 1 2 . . . . 1 . . . . 1 1 . 2 . 1 . . Garrison Relay 4 | . . . . . . 4 . . . . . . . . . . . . . . . . . . . . . . . . . . . . . . Phase Generator 1 | . . . . . . . . . . . . . . . . . . . . . . . . . . . . . . . . . . . 1 . Network Hub 3 | . . . . . . . . . . . . . . . . . . 3 . . . . . . . . . . . . . . . . . . Machines Repaired 2 | . . . . . . . . . . . . . . . . . . 2 . . . . . . . . . . . . . . . . . . Machines Sabotaged . | . . . . . . . . . . . . . . . . . . . . . . . . . . . . . . . . . . . . . Overloaded Fab Kills . | . . . . . . . . . . . . . . . . . . . . . . . . . . . . . . . . . . . . . Hacking | -11 -10 -10 -10 -9 -8 -8 -8 -8 -7 -7 -7 -7 -6 -6 -6 -6 -6 -6 -5 -5 -5 -5 -4 -4 -4 -4 -4 -3 -3 -3 -3 -2 -2 -1 -1 -1 --------- Run | Jun Mat Min Exi Min Mat Gar Mat Gar Fac Low Low Dat Pro Fac Ext Cet Arc Hub Fac Upp Upp War Pro Fac Upp Upp Zhi Pro Res Qua Sec Res Tes Acc Com Ac0 Machines Accessed 142 | . 8 1 1 1 8 4 8 1 10 . 1 3 . 19 6 1 . 6 6 1 . 3 . 5 . 1 4 . 8 12 10 1 7 6 . . Terminals 83 | . 5 1 . . 5 4 4 1 4 . 1 . . 10 5 1 . 5 2 . . . . 3 . 1 . . 4 8 9 . 5 5 . . Fabricators 13 | . . . . . . . . . 4 . . . . 3 . . . . 2 . . . . 2 . . . . 1 . . . 1 . . . Repair Stations 11 | . 1 . . . 2 . 1 . 1 . . . . 3 . . . . . . . . . . . . . . . 2 . 1 . . . . Recycling Units 6 | . 2 . . . . . 1 . . . . . . 1 1 . . . . . . . . . . . . . 1 . . . . . . . Scanalyzers 8 | . . . . . . . 1 . . . . . . 2 . . . . 1 . . . . . . . . . 1 1 1 . 1 . . . Garrison Access 8 | . . . . . 1 . 1 . 1 . . . . . . . . 1 1 . . . . . . . . . 1 1 . . . 1 . . Total Hacks 519 | . 24 5 1 1 22 12 29 4 20 . 1 20 . 50 16 1 . 18 52 1 . 8 . 32 . 1 16 . 39 53 47 2 24 20 . . Successful 253 | . 14 2 1 1 11 3 17 1 8 . 1 20 . 16 7 . . 6 24 1 . 8 . 21 . 1 16 . 19 22 20 2 6 5 . . Failed 265 | . 9 3 . . 11 9 12 3 12 . . . . 34 9 1 . 12 28 . . . . 11 . . . . 20 31 27 . 18 15 . . Catastrophic 56 | . . 1 . . 1 3 2 1 4 . . . . 8 1 1 . 5 7 . . . . 1 . . . . 2 6 1 . 6 6 . . Database Lockouts 1 | . 1 . . . . . . . . . . . . . . . . . . . . . . . . . . . . . . . . . . . Manual 204 | . 15 5 1 . 10 3 7 2 1 . . . . 23 9 1 . 15 29 . . 2 . 18 . . . . 14 15 21 . 8 5 . . Terminals 319 | . 16 5 . . 15 12 13 4 7 . 1 . . 26 15 1 . 16 30 . . . . 21 . 1 . . 25 39 43 . 13 16 . . Fabricators 55 | . . . . . . . . . 8 . . . . 7 . . . . 11 . . . . 11 . . . . 8 . . . 10 . . . Repair Stations 39 | . 3 . . . 6 . 7 . 4 . . . . 7 . . . . . . . . . . . . . . . 10 . 2 . . . . Recycling Units 13 | . 5 . . . . . 2 . . . . . . 4 1 . . . . . . . . . . . . . 1 . . . . . . . Scanalyzers 29 | . . . . . . . 6 . . . . . . 6 . . . . 7 . . . . . . . . . 4 1 4 . 1 . . . Garrison Access 17 | . . . . . 1 . 1 . 1 . . . . . . . . 2 4 . . . . . . . . . 1 3 . . . 4 . . Terminal Hacks 146 | . 9 2 1 1 3 2 3 1 . . 1 20 . 6 6 . . 3 11 1 . 8 . 9 . 1 16 . 10 12 14 . 2 4 . . Record 18 | . . . 1 . . . . . . . 1 2 . . . . . . . . . 8 . . . 1 4 . . . . . . 1 . . Part Schematic 16 | . 1 . . . 1 . . . . . . 9 . . . . . . 1 . . . . . . . 4 . . . . . . . . . Robot Schematic 6 | . . . . . . . . . . . . 6 . . . . . . . . . . . . . . . . . . . . . . . . Robot Analysis 7 | . 1 2 . . . . . . . . . . . . . . . . . . . . . . . . 4 . . . . . . . . . Prototype ID Bank 13 | . . . . . 1 . . . . . . 3 . . 3 . . . . . . . . 1 . . 4 . 1 . . . . . . . Open Door 5 | . . . . 1 . . . . . . . . . 1 . . . . . 1 . . . . . . . . . . 2 . . . . . Level Access Points 1 | . . . . . . . . . . . . . . . . . . 1 . . . . . . . . . . . . . . . . . . Branch Access Points 4 | . . . . . . . . . . . . . . . . . . . 1 . . . . 1 . . . . 1 . . . . 1 . . Emergency Access Points 2 | . . . . . . . . . . . . . . . . . . . . . . . . . . . . . 2 . . . . . . . Terminal Index 6 | . 1 . . . . . . . . . . . . 1 . . . . 1 . . . . 1 . . . . . . 1 . . 1 . . Fabricator Index 1 | . . . . . . . . . . . . . . . . . . . 1 . . . . . . . . . . . . . . . . . Scanalyzer Index 3 | . . . . . . . . . . . . . . . . . . . 1 . . . . 1 . . . . . . 1 . . . . . Alert Level 5 | . . . . . . . 1 . . . . . . . . . . . 1 . . . . . . . . . . 1 1 . 1 . . . Unreport Threat 4 | . . . . . . . 1 . . . . . . . . . . . . . . . . . . . . . . 1 2 . . . . . Locate Traps 11 | . 1 . . . 1 . . . . . . . . 1 2 . . . 1 . . . . 1 . . . . 1 2 1 . . . . . Reprogram Traps 2 | . . . . . . . . . . . . . . . . . . . . . . . . . . . . . 2 . . . . . . . Maintenance Status 2 | . . . . . . . . . . . . . . . . . . . 1 . . . . . . . . . . . . . . 1 . . Patrol Status 2 | . . . . . . . . . . . . . . . . . . . . . . . . . . . . . . 1 1 . . . . . Transport Status 2 | . 1 . . . . . . . . . . . . . . . . . . . . . . . . . . . . 1 . . . . . . Recall Extermination 2 | . . . . . . . . . . . . . . . . . . . . . . . . 1 . . . . . 1 . . . . . . Recall Assault 1 | . . . . . . . . . . . . . . . . . . . . . . . . . . . . . . . 1 . . . . . Hauler Manifests 7 | . 1 . . . . . . . . . . . . 1 . . . . 1 . . . . 1 . . . . 1 1 1 . . . . . Zone Layout 23 | . 3 . . . . . 1 . . . . . . 2 1 . . 2 2 . . . . 2 . . . . 2 4 3 . 1 . . . Patrol Navigation 1 | . . . . . . 1 . . . . . . . . . . . . . . . . . . . . . . . . . . . . . . Security Stations 2 | . . . . . . 1 . 1 . . . . . . . . . . . . . . . . . . . . . . . . . . . . Fabricator Hacks 17 | . . . . . . . . . 4 . . . . 1 . . . . 4 . . . . 4 . . . . 2 . . . 2 . . . Network Status 5 | . . . . . . . . . 1 . . . . 1 . . . . . . . . . 1 . . . . 1 . . . 1 . . . Load Schematic 6 | . . . . . . . . . 2 . . . . . . . . . 2 . . . . 1 . . . . . . . . 1 . . . Build 6 | . . . . . . . . . 1 . . . . . . . . . 2 . . . . 2 . . . . 1 . . . . . . . Repair Station Hacks 25 | . 2 . . . 4 . 5 . 4 . . . . 2 . . . . . . . . . . . . . . . 6 . 2 . . . . Scan Component 13 | . 1 . . . 2 . 3 . 2 . . . . 1 . . . . . . . . . . . . . . . 3 . 1 . . . . Repair 12 | . 1 . . . 2 . 2 . 2 . . . . 1 . . . . . . . . . . . . . . . 3 . 1 . . . . Recycling Unit Hacks 2 | . . . . . . . 1 . . . . . . . 1 . . . . . . . . . . . . . . . . . . . . . Retrieve Components 2 | . . . . . . . 1 . . . . . . . 1 . . . . . . . . . . . . . . . . . . . . . Scanalyzer 21 | . . . . . . . 6 . . . . . . 5 . . . . 5 . . . . . . . . . 3 . 2 . . . . . Insert Component 10 | . . . . . . . 3 . . . . . . 2 . . . . 3 . . . . . . . . . 1 . 1 . . . . . Analyze 11 | . . . . . . . 3 . . . . . . 3 . . . . 2 . . . . . . . . . 2 . 1 . . . . . Garrison Access Hacks 7 | . . . . . 1 . 1 . . . . . . . . . . 1 1 . . . . . . . . . 1 1 . . . 1 . . Unlock Access 2 | . . . . . 1 . 1 . . . . . . . . . . . . . . . . . . . . . . . . . . . . . Seal Access 5 | . . . . . . . . . . . . . . . . . . 1 1 . . . . . . . . . 1 1 . . . 1 . . Unauthorized Hacks 35 | . 3 . . . 3 1 1 . . . . . . 2 . . . 2 3 . . . . 8 . . . . 3 3 4 . 2 . . . Terminals 22 | . 1 . . . 3 1 . . . . . . . 1 . . . 2 2 . . . . 4 . . . . 2 2 3 . 1 . . . Track 2 | . . . . . . . . . . . . . . . . . . . . . . . . 1 . . . . . 1 . . . . . . Assimilate 2 | . . . . . 1 . . . . . . . . . . . . . . . . . . . . . . . 1 . . . . . . . Botnet 5 | . . . . . 1 . . . . . . . . . . . . . 1 . . . . 2 . . . . . . 1 . . . . . Operators 10 | . 1 . . . 1 . . . . . . . . 1 . . . . 1 . . . . 1 . . . . 1 1 2 . 1 . . . Sabotage 2 | . . . . . . . . . . . . . . . . . . 2 . . . . . . . . . . . . . . . . . . Override 1 | . . . . . . 1 . . . . . . . . . . . . . . . . . . . . . . . . . . . . . . Fabricators 6 | . . . . . . . . . . . . . . . . . . . 1 . . . . 4 . . . . 1 . . . . . . . Report 1 | . . . . . . . . . . . . . . . . . . . . . . . . 1 . . . . . . . . . . . . Prioritize 1 | . . . . . . . . . . . . . . . . . . . . . . . . 1 . . . . . . . . . . . . Liberate 1 | . . . . . . . . . . . . . . . . . . . . . . . . 1 . . . . . . . . . . . . Haulers 3 | . . . . . . . . . . . . . . . . . . . 1 . . . . 1 . . . . 1 . . . . . . . Repair Stations . | . . . . . . . . . . . . . . . . . . . . . . . . . . . . . . . . . . . . . Recycling Units 4 | . 2 . . . . . 1 . . . . . . 1 . . . . . . . . . . . . . . . . . . . . . . Reject 1 | . . . . . . . . . . . . . . 1 . . . . . . . . . . . . . . . . . . . . . . Tunnel 3 | . 2 . . . . . 1 . . . . . . . . . . . . . . . . . . . . . . . . . . . . . Scanalyzers 3 | . . . . . . . . . . . . . . . . . . . . . . . . . . . . . . 1 1 . 1 . . . Researchers 3 | . . . . . . . . . . . . . . . . . . . . . . . . . . . . . . 1 1 . 1 . . . Garrison Access . | . . . . . . . . . . . . . . . . . . . . . . . . . . . . . . . . . . . . . Data Cores Recovered 3 | . . . . . . . . . 1 . . . . . . . . 2 . . . . . . . . . . . . . . . . . . Used . | . . . . . . . . . . . . . . . . . . . . . . . . . . . . . . . . . . . . . Hacking Detections 109 | . 6 1 . . 7 4 7 1 10 . . . . 18 5 1 . 5 5 . . . . 2 . . . . 7 11 8 . 6 5 . . Full Trace Events 20 | . 1 1 . . 3 2 2 1 3 . . . . 3 . . . . 2 . . . . 1 . . . . . . . . 1 . . . Feedback Events . | . . . . . . . . . . . . . . . . . . . . . . . . . . . . . . . . . . . . . Feedback Blocked . | . . . . . . . . . . . . . . . . . . . . . . . . . . . . . . . . . . . . . Robot Schematics Acquired 6 | . . . . . . . . . . . . 6 . . . . . . . . . . . . . . . . . . . . . . . . Robots Built . | . . . . . . . . . . . . . . . . . . . . . . . . . . . . . . . . . . . . . Authchips . | . . . . . . . . . . . . . . . . . . . . . . . . . . . . . . . . . . . . . Time . | . . . . . . . . . . . . . . . . . . . . . . . . . . . . . . . . . . . . . Total Robot Build Rating . | . . . . . . . . . . . . . . . . . . . . . . . . . . . . . . . . . . . . . Part Schematics Acquired 23 | . 1 . . . 1 . 3 . . . . 9 . 1 . . . . 2 . . . . . . . 4 . 1 . 1 . . . . . Parts Built 10 | . . . . . . . . . 1 . . . . . . . . . 4 . . . . 3 . . . . 2 . . . . . . . Authchips . | . . . . . . . . . . . . . . . . . . . . . . . . . . . . . . . . . . . . . Time 354 | . . . . . . . . . 25 . . . . . . . . . 95 . . . . 165 . . . . 69 . . . . . . . Total Part Build Rating 60 | . . . . . . . . . 1 . . . . . . . . . 20 . . . . 21 . . . . 18 . . . . . . . Parts Repaired 12 | . 1 . . . 2 . 2 . 2 . . . . 1 . . . . . . . . . . . . . . . 3 . 1 . . . . Time 523 | . 26 . . . 44 . 130 . 100 . . . . 22 . . . . . . . . . . . . . . . 187 . 14 . . . . Parts Recycled . | . . . . . . . . . . . . . . . . . . . . . . . . . . . . . . . . . . . . . Recycled Matter . | . . . . . . . . . . . . . . . . . . . . . . . . . . . . . . . . . . . . . Retrieved Matter . | . . . . . . . . . . . . . . . . . . . . . . . . . . . . . . . . . . . . . Retrieved Components 10 | . . . . . . . 1 . . . . . . . 9 . . . . . . . . . . . . . . . . . . . . . Parts Scanalyzed 8 | . . . . . . . 3 . . . . . . 1 . . . . 3 . . . . . . . . . 1 . . . . . . . Part Schematics Acquired 8 | . . . . . . . 3 . . . . . . 1 . . . . 2 . . . . . . . . . 1 . 1 . . . . . Parts Damaged . | . . . . . . . . . . . . . . . . . . . . . . . . . . . . . . . . . . . . . Bothacking | -11 -10 -10 -10 -9 -8 -8 -8 -8 -7 -7 -7 -7 -6 -6 -6 -6 -6 -6 -5 -5 -5 -5 -4 -4 -4 -4 -4 -3 -3 -3 -3 -2 -2 -1 -1 -1 ------------ Run | Jun Mat Min Exi Min Mat Gar Mat Gar Fac Low Low Dat Pro Fac Ext Cet Arc Hub Fac Upp Upp War Pro Fac Upp Upp Zhi Pro Res Qua Sec Res Tes Acc Com Ac0 Used RIF Installer . | . . . . . . . . . . . . . . . . . . . . . . . . . . . . . . . . . . . . . Robots Hacked 4 | . . . . . . . . . . . . . . 1 . . 2 . 1 . . . . . . . . . . . . . . . . . Non-combat 1 | . . . . . . . . . . . . . . 1 . . . . . . . . . . . . . . . . . . . . . . Combat 3 | . . . . . . . . . . . . . . . . . 2 . 1 . . . . . . . . . . . . . . . . . Robot Hacks Applied 4 | . . . . . . . . . . . . . . 1 . . 2 . 1 . . . . . . . . . . . . . . . . . parse_system 3 | . . . . . . . . . . . . . . . . . 2 . 1 . . . . . . . . . . . . . . . . . find_chute 1 | . . . . . . . . . . . . . . 1 . . . . . . . . . . . . . . . . . . . . . . Relay Couplers Released 30 | . . . . . . 18 . . . . . . . . . . . . 2 . . . . 2 . . . . . . . 5 . 3 . . Machine Destruction 20 | . . . . . . 15 . . . . . . . . . . . . 2 . . . . 2 . . . . . . . 1 . . . . Programmers 10 | . . . . . . 3 . . . . . . . . . . . . . . . . . . . . . . . . . 4 . 3 . . Fabnet Peak Effective % . | . . . . . . . . . . . . . . . . . . . . . . . . . . . . . . . . . . . . . Robots Rewired 15 | . . . 2 . . . . . . . . . 1 . 10 . . . . . . . . 2 . . . . . . . . . . . . Allies Hacked 3 | . . . . . . . . . . . . . 1 . . . . . . . . . . 2 . . . . . . . . . . . . Hacks Repelled . | . . . . . . . . . . . . . . . . . . . . . . . . . . . . . . . . . . . . . Allies | -11 -10 -10 -10 -9 -8 -8 -8 -8 -7 -7 -7 -7 -6 -6 -6 -6 -6 -6 -5 -5 -5 -5 -4 -4 -4 -4 -4 -3 -3 -3 -3 -2 -2 -1 -1 -1 -------- Run | Jun Mat Min Exi Min Mat Gar Mat Gar Fac Low Low Dat Pro Fac Ext Cet Arc Hub Fac Upp Upp War Pro Fac Upp Upp Zhi Pro Res Qua Sec Res Tes Acc Com Ac0 Total Allies 62 | . . 4 2 . 1 . . . . . . . 2 . 25 5 . 3 . . . . . 4 . . . . 1 . . 15 . . . . Largest Group 17 | . . 4 3 3 1 . . . . . . . 1 . 17 16 5 2 2 . . . . 2 . . . . 1 . . 8 2 . . . Highest-Rated Group 626 | . . 66 45 45 10 . . . . . . . 96 . 612 626 530 218 218 . . . . 114 . . . . 26 . . 115 28 . . . Highest-Rated Ally 159 | . . 26 26 21 10 . . . . . . . 96 . 159 152 146 109 109 . . . . 65 . . . . 26 . . 15 14 . . . Total Orders 17 | . . . . . . . . . . . . . . . . . 4 . 5 . . . . . . . . . 1 . . . . . 7 . STAY 5 | . . . . . . . . . . . . . . . . . 3 . 1 . . . . . . . . . 1 . . . . . . . FOLLOW 1 | . . . . . . . . . . . . . . . . . 1 . . . . . . . . . . . . . . . . . . . EXPLORE 7 | . . . . . . . . . . . . . . . . . . . 3 . . . . . . . . . . . . . . . 4 . RETURN 4 | . . . . . . . . . . . . . . . . . . . 1 . . . . . . . . . . . . . . . 3 . Ally Attacks 344 | . . 15 . 7 . . . . . . . . 19 . 124 73 14 35 8 . . . . 2 . . . . . . . 28 19 . . . Total Damage 7684 | . . 221 . 87 . . . . . . . . 679 . 2726 1571 451 1246 44 . . . . 50 . . . . . . . 417 192 . . . Kills 48 | . . 2 . 1 . . . . . . . . 3 . 19 9 2 9 . . . . . 1 . . . . . . . 1 1 . . . Allies Corrupted . | . . . . . . . . . . . . . . . . . . . . . . . . . . . . . . . . . . . . . Allies Melted 3 | . . . . . . . . . . . . . . . . . . . . . . . . . . . . . . . . 3 . . . . Field Lobotomies 4 | . . . . . . . . . . . . . . . . . 1 3 . . . . . . . . . . . . . . . . . . Intel | -11 -10 -10 -10 -9 -8 -8 -8 -8 -7 -7 -7 -7 -6 -6 -6 -6 -6 -6 -5 -5 -5 -5 -4 -4 -4 -4 -4 -3 -3 -3 -3 -2 -2 -1 -1 -1 ------- Run | Jun Mat Min Exi Min Mat Gar Mat Gar Fac Low Low Dat Pro Fac Ext Cet Arc Hub Fac Upp Upp War Pro Fac Upp Upp Zhi Pro Res Qua Sec Res Tes Acc Com Ac0 Robot Analysis Total 7 | . 1 2 . . . . . . . . . . . . . . . . . . . . . . . . 4 . . . . . . . . . Derelict Logs Recovered 18 | . . 3 . 1 . . . . . 3 . . 2 . . . . . . 2 2 . 2 . 2 1 . . . . . . . . . . Drone Launches 7 | . . . . . . . . . . . . . . . . . . . 4 . . . . . . . . . . . . . . . 3 . Drone Recoveries 3 | . . . . . . . . . . . . . . . . . . . 1 . . . . . . . . . . . . . . . 2 . Exploration | -11 -10 -10 -10 -9 -8 -8 -8 -8 -7 -7 -7 -7 -6 -6 -6 -6 -6 -6 -5 -5 -5 -5 -4 -4 -4 -4 -4 -3 -3 -3 -3 -2 -2 -1 -1 -1 ------------- Run | Jun Mat Min Exi Min Mat Gar Mat Gar Fac Low Low Dat Pro Fac Ext Cet Arc Hub Fac Upp Upp War Pro Fac Upp Upp Zhi Pro Res Qua Sec Res Tes Acc Com Ac0 Turns Passed 58259 | 104 1436 1220 1166 1456 2590 2100 1743 304 2381 1908 1276 157 1055 2812 2037 285 770 1892 1308 1689 1190 1211 783 1259 697 753 434 600 851 2194 2021 1850 1258 1887 11544 38 Spaces Moved 22820 | 45 677 700 746 616 650 767 609 125 959 965 569 77 455 1157 871 94 207 768 387 719 492 481 300 395 294 332 207 225 339 899 949 1151 457 680 3442 14 Core 12 | 4 . . . . . . . . . . . . . . . . . . . . . . . . . . . . . . . . . . . 8 Treads 1770 | 41 434 1 . 473 510 . . . . . . . . . . . . . . . . . . . . . . . . . . . . . 311 . Legs 6 | . 6 . . . . . . . . . . . . . . . . . . . . . . . . . . . . . . . . . . . Wheels 20351 | . 237 699 746 143 140 767 609 125 959 965 569 77 455 1157 871 94 207 768 387 719 492 481 300 395 294 332 207 225 339 899 729 851 457 668 2988 . Hover . | . . . . . . . . . . . . . . . . . . . . . . . . . . . . . . . . . . . . . Flight . | . . . . . . . . . . . . . . . . . . . . . . . . . . . . . . . . . . . . . Fastest Speed 50 | 50 140 140 140 155 155 170 210 225 190 190 190 205 190 175 190 205 205 190 205 205 220 205 220 220 220 220 205 220 163 180 163 163 180 168 183 50 Average Speed 206 | 153 169 154 147 220 324 224 214 225 205 190 198 205 204 200 204 205 206 204 219 219 220 219 220 230 222 220 205 220 188 189 179 172 189 200 227 50 Slowest Speed 545 | 160 400 320 155 240 400 260 225 225 255 190 205 205 205 205 205 205 220 205 220 220 220 235 235 235 235 220 220 220 197 197 197 205 235 455 545 50 Overloaded Moves . | . . . . . . . . . . . . . . . . . . . . . . . . . . . . . . . . . . . . . Propulsion Burnouts . | . . . . . . . . . . . . . . . . . . . . . . . . . . . . . . . . . . . . . Robots Hopped . | . . . . . . . . . . . . . . . . . . . . . . . . . . . . . . . . . . . . . Cave-ins Triggered . | . . . . . . . . . . . . . . . . . . . . . . . . . . . . . . . . . . . . . Teleports 3 | . . . . . . . . . . . . . . . . . . . . . . . . . . . . . . . . . 1 . 1 1 Spacefolds 16 | . . . . . . . . . . . . . . . . . . . . . . . . . . . . . . . 6 9 . 1 . . Microwarps 60 | . . . . . . . . . . . . . . . . . . . . . . . . . . . . . . . 15 31 . 1 12 1 Exploration Rate (%) 58 | 5 70 99 94 100 53 80 48 35 26 97 67 68 67 41 85 57 89 86 18 86 61 71 57 12 49 61 60 48 13 92 47 40 83 22 75 2 Regions Visited 36 Branch Regions 24 Pre-discovered Areas 14 | . 2 2 1 1 . . 1 . . 2 . 1 . . . . . . . . . 1 . . . . 3 . . . . . . . . . Known Exits Taken 20 | . . . . . 1 . 1 . 1 . . . 1 1 . . . 1 1 1 1 1 1 1 1 1 1 1 1 . 1 . 1 1 . . Unknown Exits Taken 14 | 1 1 1 1 1 . . . . . 1 1 1 . . 1 1 1 . . . . . . . . . . . . 1 . 1 . . 1 . Scrap Searched 24 | . . 1 . 2 . . . . . 4 3 . 1 . . . . . . 2 3 . 3 . 2 1 . 2 . . . . . . . . Spaces Dug 341 | . . . . 1 1 6 . . 14 1 17 . 5 17 . 1 . 5 15 7 31 18 . 1 . 21 . 43 8 19 42 28 4 22 14 . Terrain Destroyed 1752 | . 41 . . 1 36 31 71 . 137 37 41 . 26 17 . 1 16 27 64 73 139 66 2 7 1 49 . 78 18 69 49 47 219 127 213 49 Melee 55 | . . . . 1 . 6 . . 1 1 2 . . 7 . 1 . 3 2 . . 17 . . . . . . 4 10 . . . . . . Projectile 505 | . . . . . 36 . 3 . . . 1 . . . . . . 11 10 16 2 4 2 7 1 3 . 3 14 59 49 47 63 94 77 3 AOE 1191 | . 41 . . . . 25 68 . 136 36 38 . 26 10 . . 16 13 51 57 137 45 . . . 46 . 75 . . . . 156 33 136 46 Terrain Rammed . | . . . . . . . . . . . . . . . . . . . . . . . . . . . . . . . . . . . . . Walls Destroyed . | . . . . . . . . . . . . . . . . . . . . . . . . . . . . . . . . . . . . . Machines Disabled . | . . . . . . . . . . . . . . . . . . . . . . . . . . . . . . . . . . . . . Actions | -11 -10 -10 -10 -9 -8 -8 -8 -8 -7 -7 -7 -7 -6 -6 -6 -6 -6 -6 -5 -5 -5 -5 -4 -4 -4 -4 -4 -3 -3 -3 -3 -2 -2 -1 -1 -1 --------- Run | Jun Mat Min Exi Min Mat Gar Mat Gar Fac Low Low Dat Pro Fac Ext Cet Arc Hub Fac Upp Upp War Pro Fac Upp Upp Zhi Pro Res Qua Sec Res Tes Acc Com Ac0 Total 31292 | 63 830 779 792 685 940 1016 931 142 1245 1007 664 77 518 1454 1064 164 456 967 685 795 581 584 392 647 326 349 216 299 489 1230 1192 1141 710 981 6846 35 Wait 4468 | . 53 21 . 36 83 36 142 1 125 4 55 1 16 108 65 47 105 69 65 40 64 17 63 81 11 2 . 37 40 124 119 60 92 79 2607 . Move 22178 | 44 676 699 745 615 649 765 609 124 958 964 568 76 454 1156 870 93 206 767 386 718 491 480 299 394 293 331 206 224 338 898 749 890 456 669 3310 8 Hop . | . . . . . . . . . . . . . . . . . . . . . . . . . . . . . . . . . . . . . Pick Up 418 | 5 19 12 . 6 34 21 13 . 20 2 . . 1 15 5 3 6 10 22 4 2 9 1 14 . 3 2 . 9 21 25 15 12 19 88 . Fast Attach 330 | 7 1 1 3 1 13 5 9 2 6 4 2 . 3 11 3 1 7 13 7 . . 6 2 3 5 . 4 2 7 11 43 41 12 18 76 1 Attach 262 | . 2 4 3 2 9 8 9 . 2 1 2 . 1 19 . 1 1 12 16 1 . 3 1 12 . 3 . 3 7 13 24 15 11 15 60 2 Detach 154 | . . 2 3 . 2 1 2 . 4 . 1 . 1 9 1 . 1 4 9 . . 1 3 3 . . . 3 2 5 19 14 8 8 46 2 Swap 556 | . 5 . 1 6 17 16 25 . 22 7 6 . 6 24 3 5 9 18 56 8 10 15 8 28 4 2 . 6 15 33 38 26 22 35 78 2 Drop 570 | . 4 9 3 3 41 24 19 2 22 5 3 . 3 12 6 3 12 13 21 4 2 17 2 18 3 3 4 1 11 21 48 37 16 28 150 . Fire 1939 | 7 67 29 . 13 90 70 103 5 84 19 25 . 29 90 29 7 107 58 100 20 12 13 13 84 10 5 . 23 49 72 127 43 81 110 325 20 Melee 113 | . . . 21 3 . 14 . . 1 1 2 . . 9 . 4 2 3 3 . . 23 . . . . . . 11 16 . . . . . . Ram 1 | . . . . . . . . . 1 . . . . . . . . . . . . . . . . . . . . . . . . . . . Kick . | . . . . . . . . . . . . . . . . . . . . . . . . . . . . . . . . . . . . . Crush 7 | . 3 2 . . 2 . . . . . . . . . . . . . . . . . . . . . . . . . . . . . . . Escape Stasis 186 | . . . . . . 56 . 8 . . . . . . . . . . . . . . . . . . . . . 16 . . . . 106 . Rewire 110 | . . . 13 . . . . . . . . . 4 1 82 . . . . . . . . 10 . . . . . . . . . . . . Trap . | . . . . . . . . . . . . . . . . . . . . . . . . . . . . . . . . . . . . . Miscellaneous . | . . . . . . . . . . . . . . . . . . . . . . . . . . . . . . . . . . . . . Route ------- -11/Junkyard -10/Materials (discovered 3 exits: [*Mat x2] / *Min) -10/Mines (discovered 3 exits: [*Mat x2] / *Exi) -10/Exiles -9/Mines (discovered 2 exits: *Mat x2) -8/Materials (discovered 3 exits: *Fac x2 / Gar) -8/Garrison (discovered 3 exits: *Mat x3) -8/Materials (discovered 2 exits: *Fac / Gar) -8/Garrison -7/Factory (discovered 2 exits: *Low x2) -7/Lower Caves -7/Lower Caves (discovered 2 exits: *Fac / *Dat) -7/Data Miner -6/Proximity Caves -6/Factory (discovered 3 exits: *Fac / Low / *Ext) -6/Extension (discovered 2 exits: *Fac / *Cet) -6/Cetus -6/Archives (discovered 3 exits: *Fac / *Hub x2) -6/Hub_04(d) (discovered 4 exits: *Fac x4) -5/Factory (discovered 3 exits: Fac / *Upp x2) -5/Upper Caves -5/Upper Caves (discovered 2 exits: *Fac / *War) -5/Warlord -4/Proximity Caves -4/Factory (discovered 4 exits: *Res / *Upp x2 / Arm) -4/Upper Caves -4/Upper Caves -4/Zhirov -3/Proximity Caves -3/Research (discovered 3 exits: Res / *Qua x2) -3/Quarantine (discovered 2 exits: *Res / *Sec) -3/Section 7 -2/Research (discovered 3 exits: *Acc x2 / *Tes) -2/Testing -1/Access -1/Command (discovered 3 exits: [*Sur x2] / [*Ac0]) -1/Access_0 Near Former Tau Ceti IV History --------- Turn | Location | Event 20 | -11/Junkyard | Discovered new exit (range 16) 105 | -11/Junkyard | Entered Materials 302 | -10/Materials | Build established: Mutant 535 | -10/Materials | Central database locked down 554 | -10/Materials | Discovered new exit (range 16) 821 | -10/Materials | Discovered new exit (range 15) 835 | -10/Materials | Discovered new exit (range 20) 1404 | -10/Materials | Repaired Lgt. Treads? 1541 | -10/Materials | Entered Mines 1589 | -10/Mines | Discovered new exit (range 9) 1721 | -10/Mines | Discovered new exit (range 10) 1915 | -10/Mines | Escorted by a lone wolf Derelict 1935 | -10/Mines | Learned location of Storage (-9) 1950 | -10/Mines | Build established: Scavenger-Mutant 2092 | -10/Mines | Found a hidden stash of uninstalled traps 2136 | -10/Mines | Assisted by bots powering up and referring to "LRC-V3" 2353 | -10/Mines | Learned 2 Materials zone layouts 2453 | -10/Mines | Deemed a non-threat by the Exiles lab entrance 2455 | -10/Mines | Discovered new exit (range 5) 2761 | -10/Mines | Entered Exiles 2761 | -10/Exiles | Found Exiles lab destroyed 2761 | -10/Exiles | Accompanied by 2 allies 2918 | -10/Exiles | Opened EX-Vault 2925 | -10/Exiles | Found Prototype Special Weapon 2925 | -10/Exiles | Identified Field Lobotomy Kit 3123 | -10/Exiles | Learned location of Zion (-6) 3612 | -10/Exiles | Discovered new exit (range 14) 3927 | -10/Exiles | Entered Mines 3927 | -9/Mines | Accompanied by 3 allies 3961 | -9/Mines | Met a Derelict bent on vengeance 4091 | -9/Mines | Assembled infested the area 4107 | -9/Mines | Core integrity fell below 50% 4319 | -9/Mines | Found the Drone Emporium 4328 | -9/Mines | Found Prototype Device 4329 | -9/Mines | Identified Thief Drone Bay 4449 | -9/Mines | Build established: Mutant 4710 | -9/Mines | Discovered new exit (range 10) 5357 | -9/Mines | Discovered new exit (range 8) 5383 | -9/Mines | Entered Materials 5383 | -8/Materials | Evolved 4 slots: Utility x3, Weapon x1 5829 | -8/Materials | Build established: Scavenger-Tank 6034 | -8/Materials | Repaired Imp. Medium Armor Plating 6232 | -8/Materials | Repaired Imp. Medium Armor Plating 6390 | -8/Materials | Discovered new exit (range 12) 7203 | -8/Materials | Garrison activated, responded to threat 7349 | -8/Materials | Garrison activated, responded to threat 7464 | -8/Materials | Identified exit to Garrison 7717 | -8/Materials | Discovered new exit (range 16) 7973 | -8/Materials | Entered Garrison 7992 | -8/Garrison | Triggered checkpoint 8282 | -8/Garrison | Triggered checkpoint 8339 | -8/Garrison | Lost 3 parts (1p1n1u) 8350 | -8/Garrison | Destroyed 7 combat bots 8494 | -8/Garrison | Triggered checkpoint 8534 | -8/Garrison | Garrison Relay disabled 8586 | -8/Garrison | Build established: Tank 8603 | -8/Garrison | Discovered new exit (range 15) 8657 | -8/Garrison | Learned Materials security intel 8818 | -8/Garrison | Triggered checkpoint 8892 | -8/Garrison | Triggered checkpoint 8937 | -8/Garrison | Garrison Relay disabled 9070 | -8/Garrison | Discovered new exit (range 8) 9224 | -8/Garrison | Triggered checkpoint 9350 | -8/Garrison | Discovered new exit (range 10) 9426 | -8/Garrison | Triggered checkpoint 9841 | -8/Garrison | Garrison Relay disabled 9864 | -8/Garrison | Attempted to access garrison exit controls, blocked by remote lockdown 9929 | -8/Garrison | Identified exit to Materials 10073 | -8/Garrison | Entered Materials 10473 | -8/Materials | First assault squad dispatched 10503 | -8/Materials | Build established: Scavenger-Gunner 10831 | -8/Materials | Build established: Gunner 10957 | -8/Materials | Core integrity fell below 50% 11004 | -8/Materials | Destroyed 10 combat bots 11226 | -8/Materials | Garrison activated, responded to threat 11349 | -8/Materials | Discovered new exit (range 9) 11440 | -8/Materials | Repaired Enh. Autogun? 11632 | -8/Materials | Repaired Broken Adv. Heat Sink 11816 | -8/Materials | Identified exit to Garrison 11816 | -8/Materials | Entered Garrison 11913 | -8/Garrison | Learned Factory security intel 12060 | -8/Garrison | Discovered new exit (range 8) 12120 | -8/Garrison | Entered Factory 12120 | -7/Factory | Evolved 2 slots: Power x1, Utility x1 12477 | -7/Factory | Garrison activated, responded to threat 12636 | -7/Factory | Garrison activated, responded to threat 12721 | -7/Factory | Build established: Scavenger-Tank 12799 | -7/Factory | Fabricated Cargo Storage Unit (x1) 13104 | -7/Factory | Build established: Hauler-Tank 13127 | -7/Factory | Discovered new exit (range 3) 13134 | -7/Factory | Identified exit to Lower Caves 13143 | -7/Factory | Discovered exit to Lower Caves (range 5) 13267 | -7/Factory | Repaired Imp. Weapon Cycler? 13357 | -7/Factory | Repaired Flak Gun 13535 | -7/Factory | Found Prototype Launcher 13631 | -7/Factory | Identified Rocket Array 13720 | -7/Factory | First assault squad dispatched 14501 | -7/Factory | Entered Lower Caves 14507 | -7/Lower Caves | Met a Warlord Commander 14508 | -7/Lower Caves | Learned location of Warlord (-5) 14513 | -7/Lower Caves | Found Encrypted Comm Array 14571 | -7/Lower Caves | Found Alien Artifact 14571 | -7/Lower Caves | Identified Core Expander 14571 | -7/Lower Caves | Installed Core Expander, added new Power slot 14711 | -7/Lower Caves | Learned Factory garrison access intel 15187 | -7/Lower Caves | Learned location of 1 exit from Factory 16079 | -7/Lower Caves | Discovered new exit (range 5) 16409 | -7/Lower Caves | Entered another Lower Caves area 16480 | -7/Lower Caves | Discovered new exit (range 15) 16527 | -7/Lower Caves | Spotted B-75 Beast 17620 | -7/Lower Caves | Discovered new exit (range 13) 17685 | -7/Lower Caves | Entered Data Miner 17685 | -7/Data Miner | Discovered new exit (range 6) 17724 | -7/Data Miner | Met Data Miner 17767 | -7/Data Miner | Learned location of Section 7 (-3) 17767 | -7/Data Miner | Acquired the access code to Warlord's prototype stash 17792 | -7/Data Miner | Received God Mode back door access code from Data Miner 17842 | -7/Data Miner | Entered Proximity Caves 17857 | -6/Proximity Caves | Learned location of 1 exit from Factory 17967 | -6/Proximity Caves | Escorted by Enhanced Grunt 17989 | -6/Proximity Caves | Identified exit to Factory 18115 | -6/Proximity Caves | Attracted the attention of an 0b10 outpost 18337 | -6/Proximity Caves | Spotted B-75 Beast 18811 | -6/Proximity Caves | Attracted the attention of an 0b10 checkpoint 18897 | -6/Proximity Caves | Entered Factory 18897 | -6/Factory | Evolved 2 slots: Utility x2 18898 | -6/Factory | Identified exit to Extension 18898 | -6/Factory | Identified exit to Lower Caves 18899 | -6/Factory | Loaded intel: 4 garrison access locations 19143 | -6/Factory | Incoming investigation squad redirected 19737 | -6/Factory | Incoming investigation squad redirected 20597 | -6/Factory | Lost 3 parts (1p1u1w) 20717 | -6/Factory | Build established: Hauler-Gunner 21166 | -6/Factory | Repaired Arm. Huge Wheel 21389 | -6/Factory | Discovered new exit (range 8) 21479 | -6/Factory | Garrison activated, responded to threat 21709 | -6/Factory | Entered Extension 21824 | -6/Extension | Rescued a captive Derelict 21938 | -6/Extension | Rescued a captive Derelict 21953 | -6/Extension | Rescued A7 22332 | -6/Extension | Rescued a captive Derelict 22333 | -6/Extension | Rescued a captive Derelict 22402 | -6/Extension | Rescued a captive Derelict 22403 | -6/Extension | Rescued a captive Derelict 22545 | -6/Extension | Rescued a captive Derelict 22546 | -6/Extension | Rescued a captive Derelict 22980 | -6/Extension | Spotted B-75 Beast 22996 | -6/Extension | Destroyed B-75 Beast 23003 | -6/Extension | Spotted B-75 Beast 23012 | -6/Extension | Allies destroyed B-75 Beast 23083 | -6/Extension | Rescued a captive Derelict 23128 | -6/Extension | Rescued a captive Derelict 23129 | -6/Extension | Rescued a captive Derelict 23235 | -6/Extension | Rescued a captive Derelict 23611 | -6/Extension | Build established: Commander-Gunner 23620 | -6/Extension | Rescued a captive Derelict 23621 | -6/Extension | Rescued a captive Derelict 23698 | -6/Extension | Discovered new exit (range 10) 23700 | -6/Extension | Discovered new exit (range 6) 23746 | -6/Extension | Entered Cetus 23746 | -6/Cetus | Accompanied by 17 allies (A7) 23751 | -6/Cetus | Acquired a Cetus Manufacturing Module code from A7 23771 | -6/Cetus | Spotted Cetus Guard 23771 | -6/Cetus | Spotted Cetus Guard 23775 | -6/Cetus | Spotted Cetus Guard 23779 | -6/Cetus | Spotted Cetus Guard 23785 | -6/Cetus | Allies destroyed Cetus Guard 23790 | -6/Cetus | Allies destroyed Cetus Guard 23793 | -6/Cetus | Allies destroyed Cetus Guard 23801 | -6/Cetus | Destroyed Cetus Guard 23894 | -6/Cetus | Started Cetus Manufacturing Module 23919 | -6/Cetus | Manufactured an Enhanced Grunt 23930 | -6/Cetus | Escorted A7 to Cetus Mainframe 23944 | -6/Cetus | Manufactured an Enhanced Grunt 23955 | -6/Cetus | Discovered new exit (range 16) 23969 | -6/Cetus | Manufactured an Enhanced Grunt 23994 | -6/Cetus | Manufactured an Enhanced Grunt 24019 | -6/Cetus | Manufactured an Enhanced Grunt 24031 | -6/Cetus | Entered Archives 24031 | -6/Archives | Accompanied by 5 allies (A7) 24036 | -6/Archives | Received a hacking code to weaken MAIN.C 24036 | -6/Archives | Assimilated A7 with FLK Orb 24094 | -6/Archives | Destroyed A7 24098 | -6/Archives | Extracted ID and sensor layout for unrecognized location from A7's data core 24165 | -6/Archives | Discovered new exit (range 14) 24230 | -6/Archives | Unable to access archive contents 24365 | -6/Archives | Discovered new exit (range 16) 24705 | -6/Archives | Discovered new exit (range 14) 24801 | -6/Archives | Entered Hub_04(d) 24801 | -6/Hub_04(d) | Accompanied by 2 allies 25192 | -6/Hub_04(d) | Discovered new exit (range 5) 25253 | -6/Hub_04(d) | Build established: Scavenger-Gunner 25256 | -6/Hub_04(d) | Identified exit to Factory 26212 | -6/Hub_04(d) | Network Hub disabled 26216 | -6/Hub_04(d) | Spotted Lightning 26228 | -6/Hub_04(d) | Assimilated H-61 Shepherd with FLK Orb 26233 | -6/Hub_04(d) | System corruption reached 10% 26238 | -6/Hub_04(d) | Spotted Lightning 26243 | -6/Hub_04(d) | Spotted Lightning 26253 | -6/Hub_04(d) | Allies destroyed Lightning 26256 | -6/Hub_04(d) | Destroyed Lightning 26257 | -6/Hub_04(d) | Lost 6 parts (2p3u1w) 26259 | -6/Hub_04(d) | Destroyed Lightning 26365 | -6/Hub_04(d) | Found Powered Armor 26369 | -6/Hub_04(d) | Found Powered Armor 26372 | -6/Hub_04(d) | Found Powered Armor 26375 | -6/Hub_04(d) | Found Corrupted Powered Armor 26452 | -6/Hub_04(d) | Network Hub disabled 26485 | -6/Hub_04(d) | Build established: Hauler-Mutant 26596 | -6/Hub_04(d) | Network Hub disabled 26672 | -6/Hub_04(d) | Spotted Lightning 26672 | -6/Hub_04(d) | Spotted Lightning 26679 | -6/Hub_04(d) | Assimilated Lightning with FLK Orb 26679 | -6/Hub_04(d) | Spotted Lightning 26685 | -6/Hub_04(d) | Assimilated Lightning with FLK Orb 26693 | -6/Hub_04(d) | Entered Factory 26693 | -5/Factory | Accompanied by 2 allies 26693 | -5/Factory | Evolved 2 slots: Utility x2 26708 | -5/Factory | Destroyed Lightning 26713 | -5/Factory | Lost 4 parts (1p1n2u) 26753 | -5/Factory | Destroyed Lightning 26761 | -5/Factory | Found EMDS 26773 | -5/Factory | Found Exp. EM Disruption Field 26776 | -5/Factory | Found Exp. Targeting Computer 26779 | -5/Factory | Found EMDS 26797 | -5/Factory | Found Exp. Targeting Computer 26915 | -5/Factory | Identified exit to Upper Caves 26915 | -5/Factory | Discovered new exit (range 10) 27078 | -5/Factory | Incoming investigation squad redirected 27104 | -5/Factory | Fabricated Arm. Huge Wheel (x2) 27245 | -5/Factory | Incoming investigation squad redirected 27268 | -5/Factory | Fabricated Adv. Shield Generator (x2) 27893 | -5/Factory | First assault squad dispatched 27912 | -5/Factory | Cargo convoy interrupted 27938 | -5/Factory | Incoming assault squad redirected 28001 | -5/Factory | Entered Upper Caves 28213 | -5/Upper Caves | Build established: Scavenger-Skirmisher 28784 | -5/Upper Caves | Learned location of 1 exit from Factory 28952 | -5/Upper Caves | Build established: Scavenger-Mutant 29390 | -5/Upper Caves | Discovered new exit (range 16) 29502 | -5/Upper Caves | Build established: Scavenger-Tank 29542 | -5/Upper Caves | Identified exit to Upper Caves 29690 | -5/Upper Caves | Entered another Upper Caves area 29807 | -5/Upper Caves | Discovered new exit (range 10) 29824 | -5/Upper Caves | Learned 12 Factory zone layouts 29831 | -5/Upper Caves | Identified exit to Factory 30385 | -5/Upper Caves | Learned 4 Factory zone layouts 30737 | -5/Upper Caves | Discovered new exit (range 6) 30748 | -5/Upper Caves | Identified exit to Warlord 30880 | -5/Upper Caves | Entered Warlord 30957 | -5/Warlord | System corruption cleaned by Quarantine Array 31165 | -5/Warlord | Learned location of Armory (-4) 31165 | -5/Warlord | Learned Testing trap positions 31167 | -5/Warlord | Learned 4 Research zone layouts 31167 | -5/Warlord | Learned 4 Quarantine zone layouts 31167 | -5/Warlord | Learned 4 Command zone layouts 31169 | -5/Warlord | Learned Testing security intel 31169 | -5/Warlord | Learned Factory fabricator intel 31403 | -5/Warlord | Found Prototype Special Weapon 31406 | -5/Warlord | Found Prototype Special Weapon 31407 | -5/Warlord | Identified RU-N14's Throwing Claymores v3 (x2) 31414 | -5/Warlord | Found RU-N14's Throwing Claymores v3 31418 | -5/Warlord | Found RU-N14's Throwing Claymores v3 31422 | -5/Warlord | Found RU-N14's Throwing Claymores v3 31425 | -5/Warlord | Found RU-N14's Throwing Claymores v3 31440 | -5/Warlord | Build established: Hauler-Mutant 31565 | -5/Warlord | Met Warlord 31580 | -5/Warlord | Warlord's base attacked by MAIN.C 31593 | -5/Warlord | Opened Warlord's prototype stash 31601 | -5/Warlord | Found Prototype Reactor 31601 | -5/Warlord | Identified Vortex Chain Reactor 31607 | -5/Warlord | Found Prototype Device 31607 | -5/Warlord | Identified Exp. Cloaking Device 31618 | -5/Warlord | Found Prototype Device 31618 | -5/Warlord | Identified Exp. Focal Shield 31627 | -5/Warlord | Found Prototype Hackware 31634 | -5/Warlord | Identified System Mapper 31873 | -5/Warlord | Found Corrupted Prototype Ballistic Cannon 31875 | -5/Warlord | Destroyed 7 combat bots 31930 | -5/Warlord | Warlord forces counterattacked 31935 | -5/Warlord | Spotted Striker 31998 | -5/Warlord | Spotted Executioner 32006 | -5/Warlord | Destroyed Executioner 32007 | -5/Warlord | Spotted Executioner 32065 | -5/Warlord | Discovered new exit (range 14) 32089 | -5/Warlord | Identified exit to Proximity Caves 32091 | -5/Warlord | Entered Proximity Caves 32139 | -4/Proximity Caves | Learned 8 Research zone layouts 32269 | -4/Proximity Caves | Learned Research interactive machine intel 32289 | -4/Proximity Caves | Build established: Hauler-Tank 32480 | -4/Proximity Caves | Spotted B-86 Titan 32500 | -4/Proximity Caves | Destroyed B-86 Titan 32864 | -4/Proximity Caves | Discovered exit to Factory (range 3) 32873 | -4/Proximity Caves | Identified Hvy. Autocannon 32874 | -4/Proximity Caves | Entered Factory 32874 | -4/Factory | Evolved 2 slots: Utility x2 32875 | -4/Factory | Identified exit to Research 32877 | -4/Factory | Loaded intel: 6 fabricator locations 33154 | -4/Factory | Identified exit to Upper Caves 33154 | -4/Factory | Identified exit to Armory 33313 | -4/Factory | Incoming investigation squad redirected 33319 | -4/Factory | Fabricated Adv. Shield Generator (x2) 33620 | -4/Factory | Build established: Hauler-Mutant 33716 | -4/Factory | Fabricated Enh. Nova Cannon (x1) 33923 | -4/Factory | Incoming assault squad redirected 34133 | -4/Factory | Entered Upper Caves 34312 | -4/Upper Caves | Identified exit to Upper Caves 34314 | -4/Upper Caves | Learned 4 Research zone layouts 34600 | -4/Upper Caves | Encountered a Warlord checkpoint 34830 | -4/Upper Caves | Entered another Upper Caves area 34989 | -4/Upper Caves | Learned Research terminal intel 35469 | -4/Upper Caves | Discovered new exit (range 8) 35482 | -4/Upper Caves | Identified exit to Zhirov 35583 | -4/Upper Caves | Entered Zhirov 35584 | -4/Zhirov | Discovered new exit (range 3) 35621 | -4/Zhirov | Met Zhirov 35658 | -4/Zhirov | Learned location of Quarantine (-3) 35658 | -4/Zhirov | Learned location of Testing (-2) 35658 | -4/Zhirov | Learned location of Command (-1) 35677 | -4/Zhirov | Zhirov requested help retrieving the SGEMP Prototype 35708 | -4/Zhirov | Found Alien Artifact 35708 | -4/Zhirov | Identified Integrated Reactor 35708 | -4/Zhirov | Installed Integrated Reactor, increased core energy generation (+10) 35813 | -4/Zhirov | Identified exit to Proximity Caves 35890 | -4/Zhirov | Found Alien Artifact 36017 | -4/Zhirov | Entered Proximity Caves 36535 | -3/Proximity Caves | Discovered exit to Research (range 13) 36551 | -3/Proximity Caves | Attracted the attention of an 0b10 checkpoint 36617 | -3/Proximity Caves | Entered Research 36617 | -3/Research | Evolved 2 slots: Propulsion x1, Utility x1 36618 | -3/Research | Identified exit to Research 36619 | -3/Research | Loaded intel: 45 interactive machine locations 36620 | -3/Research | Loaded intel: 23 terminal locations 36699 | -3/Research | Fabricated Quantum Reactor? 36793 | -3/Research | Identified exit to Quarantine 37093 | -3/Research | Destroyed 9 combat bots 37468 | -3/Research | Entered Quarantine 37541 | -3/Quarantine | Repaired Centrium Medium Armor Plating 38003 | -3/Quarantine | Found Prototype Processor 38008 | -3/Quarantine | Identified Spectral Analyzer 38131 | -3/Quarantine | Found Alien Energy Cannon 38449 | -3/Quarantine | Found Alien Artifact 38598 | -3/Quarantine | Repaired Centrium Wheel? 38721 | -3/Quarantine | Repaired Exp. Heat Sink 38945 | -3/Quarantine | Cryocooling Duct disabled 38960 | -3/Quarantine | Ambient heat levels rising (+20) 38960 | -3/Quarantine | Non-combat units ordered to evacuate 39070 | -3/Quarantine | Discovered exit to Research (range 16) 39226 | -3/Quarantine | Found Alien Artifact 39226 | -3/Quarantine | Identified Core Reset Matrix 39226 | -3/Quarantine | Identified Transdimensional Reconstructor 39226 | -3/Quarantine | Identified Core Cannon 39226 | -3/Quarantine | Identified Subatomic Replicator 39226 | -3/Quarantine | Used Core Reset Matrix 39230 | -3/Quarantine | Detected hypermatrix surge 39230 | -3/Quarantine | Sensed 1 artifact in vicinity 39234 | -3/Quarantine | Discovered exit to Research (range 8) 39533 | -3/Quarantine | Spotted Fortress 39551 | -3/Quarantine | Build established: Hauler-Tank 39652 | -3/Quarantine | Discovered new exit (range 6) 39662 | -3/Quarantine | Entered Section 7 39663 | -3/Section 7 | Sensed 17 artifacts in vicinity 39721 | -3/Section 7 | Spotted S7 Guard 39738 | -3/Section 7 | Spotted B-86 Titan 39739 | -3/Section 7 | Destroyed S7 Guard 39751 | -3/Section 7 | Destroyed B-86 Titan 39762 | -3/Section 7 | Found Integrated Thermoelectric Network 39762 | -3/Section 7 | Installed Integrated Thermoelectric Network, gained heat-energy exchange potential 39775 | -3/Section 7 | Found Corrupted Prototype Protection 39775 | -3/Section 7 | Identified Hvy. Regenerative Plating 39912 | -3/Section 7 | First assault squad dispatched 39931 | -3/Section 7 | Incoming assault squad redirected 39932 | -3/Section 7 | Found Microwarp Drive 40279 | -3/Section 7 | Found Unknown Device 40279 | -3/Section 7 | Identified Antimissile System 40662 | -3/Section 7 | Found Integrated Reactor 40662 | -3/Section 7 | Installed Integrated Reactor, increased core energy generation (+10) 40747 | -3/Section 7 | Found Spacefold Activator 40837 | -3/Section 7 | Found Integrated Reactor 40837 | -3/Section 7 | Installed Integrated Reactor, increased core energy generation (+10) 40870 | -3/Section 7 | Found Integrated Dissipator 40870 | -3/Section 7 | Installed Integrated Dissipator, increased core heat dissipation (+20) 40968 | -3/Section 7 | Found Integrated Reactor 40969 | -3/Section 7 | Installed Integrated Reactor, increased core energy generation (+10) 40972 | -3/Section 7 | Found Integrated Reactor 40972 | -3/Section 7 | Installed Integrated Reactor, increased core energy generation (+10) 40975 | -3/Section 7 | Found Integrated Reactor 40975 | -3/Section 7 | Installed Integrated Reactor, increased core energy generation (+10) 41036 | -3/Section 7 | Found LRC Armor 41036 | -3/Section 7 | Installed LRC Armor, increased core integrity (+250) 41108 | -3/Section 7 | Found Integrity Redistributor 41377 | -3/Section 7 | Spotted Executioner 41377 | -3/Section 7 | Spotted Executioner 41446 | -3/Section 7 | Destroyed Executioner 41448 | -3/Section 7 | Core integrity fell below 50% 41461 | -3/Section 7 | Destroyed Executioner 41487 | -3/Section 7 | Found Terrabomb 41487 | -3/Section 7 | Used Terrabomb 41505 | -3/Section 7 | Found Transdimensional Reconstructor 41631 | -3/Section 7 | Discovered exit to Research (range 14) 41636 | -3/Section 7 | System corruption reached 10% 41683 | -3/Section 7 | Entered Research 41683 | -2/Research | Warlord forces began assault on 0b10 41683 | -2/Research | Evolved 2 slots: Weapon x2 41708 | -2/Research | Distinguished unit "Grunt Murderers" dispatched to help 41793 | -2/Research | Research machine network offline 41798 | -2/Research | Repaired Arm. Huge Wheel 41819 | -2/Research | Build established: Alien-Gunner 41979 | -2/Research | Borebot progress halted 42089 | -2/Research | Found Prototype Processor 42103 | -2/Research | Identified Spectral Analyzer 42107 | -2/Research | Met up with Warlord 42171 | -2/Research | Borebot progress halted 42234 | -2/Research | Discovered new exit (range 8) 42248 | -2/Research | Identified exit to Access 42376 | -2/Research | Discovered exit to Access (range 3) 42390 | -2/Research | Destroyed Striker 42391 | -2/Research | Spotted Executioner 42395 | -2/Research | Spotted Executioner 42400 | -2/Research | Destroyed Executioner 42431 | -2/Research | Lost 3 parts (1p2w) 42710 | -2/Research | Spotted Striker 42712 | -2/Research | Spotted Striker 42723 | -2/Research | Destroyed Striker 42733 | -2/Research | Destroyed Striker 42737 | -2/Research | Spotted Striker 42742 | -2/Research | Spotted Executioner 42760 | -2/Research | Destroyed Striker 42779 | -2/Research | Found Exp. Targeting Computer 42783 | -2/Research | Found Prototype Processor 42783 | -2/Research | Identified Exp. Core Analyzer 42799 | -2/Research | Spotted Executioner 42799 | -2/Research | Spotted Executioner 43326 | -2/Research | Spotted Striker 43326 | -2/Research | Spotted Striker 43328 | -2/Research | Spotted Striker 43328 | -2/Research | Spotted Striker 43346 | -2/Research | Spotted Striker 43346 | -2/Research | Spotted Striker 43360 | -2/Research | Core integrity fell below 50% 43374 | -2/Research | Spotted B-90 Cyclops 43375 | -2/Research | Lost 3 parts (1n1u1w) 43390 | -2/Research | Emitted hypermatrix ping 43395 | -2/Research | Assembled emerged from beneath the floor 43419 | -2/Research | Destroyed Striker 43430 | -2/Research | Destroyed Striker 43463 | -2/Research | Assembled emerged from beneath the floor 43519 | -2/Research | Discovered new exit (range 5) 43533 | -2/Research | Entered Testing 43533 | -2/Testing | Accompanied by 2 allies 43535 | -2/Testing | Protovariant out of control (PX-QR8FJWWL0D) 43643 | -2/Testing | Spotted Investigator 43658 | -2/Testing | Destroyed Investigator 43670 | -2/Testing | Core integrity fell below 20% 43708 | -2/Testing | Destroyed 9 combat bots 43821 | -2/Testing | First assault squad dispatched 43896 | -2/Testing | Warped through subspace 43974 | -2/Testing | Found Corrupted Prototype Device 43992 | -2/Testing | Identified Exp. Transmission Jammer 44015 | -2/Testing | System corruption reached 10% 44094 | -2/Testing | Found Prototype Processor 44106 | -2/Testing | Identified Exp. Melee Analysis Suite 44313 | -2/Testing | Found Prototype Energy Cannon 44314 | -2/Testing | Identified Null Cannon 44413 | -2/Testing | Incoming assault squad redirected 44549 | -2/Testing | Incoming assault squad redirected 44763 | -2/Testing | Discovered exit to Access (range 6) 44791 | -2/Testing | Entered Access 44791 | -1/Access | Evolved 2 slots: Weapon x2 45085 | -1/Access | Build established: Scavenger-Executioner 45384 | -1/Access | Lost 4 parts (1p1n1u1w) 45387 | -1/Access | Destroyed 7 combat bots 45571 | -1/Access | First assault squad dispatched 45579 | -1/Access | Spotted B-99 Colossus 45582 | -1/Access | Destroyed B-99 Colossus 45623 | -1/Access | Destroyed 7 combat bots 45627 | -1/Access | Lost 3 parts (1u2w) 45655 | -1/Access | Found Unknown Protection 45697 | -1/Access | Found Prototype Device 45726 | -1/Access | Identified Hvy. Insulated Plating 45746 | -1/Access | Identified Exp. Shield Generator 45749 | -1/Access | System corruption reached 10% 46056 | -1/Access | Incoming assault squad redirected 46262 | -1/Access | Identified exit to Command 46293 | -1/Access | Spotted B-99 Colossus 46317 | -1/Access | Incoming assault squad redirected 46678 | -1/Access | Entered Command 46679 | -1/Command | Sensed 1 artifact in vicinity 46719 | -1/Command | High security lockdown imminent 46765 | -1/Command | Destroyed 8 combat bots 46799 | -1/Command | High security lockdown engaged 46878 | -1/Command | Used Integrity Redistributor, redistributed integrity from core (-288) 46909 | -1/Command | Spotted Executioner 46911 | -1/Command | Destroyed Executioner 46970 | -1/Command | Destroyed 17 combat bots 47044 | -1/Command | Scanned by Researcher 47050 | -1/Command | Destroyed Investigator 47094 | -1/Command | Destroyed 12 combat bots 47145 | -1/Command | Build established: Alien-Executioner 47148 | -1/Command | Spotted Executioner 47152 | -1/Command | Spotted Executioner 47152 | -1/Command | Spotted Investigator 47155 | -1/Command | Destroyed Executioner 47159 | -1/Command | Destroyed Executioner 47178 | -1/Command | Spotted Executioner 47186 | -1/Command | Spotted Executioner 47186 | -1/Command | Destroyed Investigator 47203 | -1/Command | Destroyed Executioner 47207 | -1/Command | Destroyed Executioner 47216 | -1/Command | Lost 5 parts (1p2n1u1w) 47234 | -1/Command | Destroyed 23 combat bots 47256 | -1/Command | System corruption reached 30% 47355 | -1/Command | Destroyed Investigator 47355 | -1/Command | Destroyed Executioner 47379 | -1/Command | Spotted Executioner 47387 | -1/Command | Destroyed Executioner 47416 | -1/Command | Destroyed 12 combat bots 47417 | -1/Command | Destroyed Executioner 47417 | -1/Command | Spotted Executioner 47419 | -1/Command | Destroyed Executioner 47435 | -1/Command | Spotted Executioner 47438 | -1/Command | Destroyed Executioner 47441 | -1/Command | Destroyed Executioner 47466 | -1/Command | Lost 3 parts (1n1u1w) 47467 | -1/Command | Destroyed 16 combat bots 47607 | -1/Command | Destroyed Striker 47607 | -1/Command | Destroyed Executioner 47610 | -1/Command | Spotted Executioner 47611 | -1/Command | Spotted Striker 47616 | -1/Command | Destroyed Executioner 47620 | -1/Command | Destroyed Striker 47677 | -1/Command | Spotted Executioner 47677 | -1/Command | Spotted Executioner 47679 | -1/Command | Spotted Striker 47679 | -1/Command | Spotted Executioner 47679 | -1/Command | Destroyed Executioner 47679 | -1/Command | Destroyed Executioner 47683 | -1/Command | Destroyed Executioner 47686 | -1/Command | Destroyed Striker 47690 | -1/Command | Destroyed Striker 47693 | -1/Command | Destroyed Striker 47727 | -1/Command | Destroyed 35 combat bots 47977 | -1/Command | Spotted Striker 47978 | -1/Command | Spotted Executioner 47980 | -1/Command | Destroyed Striker 47981 | -1/Command | Core integrity fell below 50% 47985 | -1/Command | Destroyed Executioner 47990 | -1/Command | Destroyed Executioner 47992 | -1/Command | Destroyed Striker 48020 | -1/Command | Destroyed 15 combat bots 48022 | -1/Command | Lost 3 parts (3w) 48569 | -1/Command | Found Prototype Launcher 49017 | -1/Command | Build established: Scavenger-Executioner 49514 | -1/Command | Build established: Alien-Executioner 49918 | -1/Command | Found Unknown Device 49918 | -1/Command | Identified Quantum Capacitor 50017 | -1/Command | Found Prototype Device 50020 | -1/Command | Identified Femtoactuators 51236 | -1/Command | Spotted Combat Programmer 51236 | -1/Command | Spotted Combat Programmer 51237 | -1/Command | Spotted M Guard 51240 | -1/Command | Spotted M Guard 51265 | -1/Command | Destroyed Combat Programmer 51274 | -1/Command | Destroyed Combat Programmer 51297 | -1/Command | Destroyed M Guard 51305 | -1/Command | Destroyed M Guard 51305 | -1/Command | All MAIN.C guards destroyed 51585 | -1/Command | Build established: Alien-Mutant 51722 | -1/Command | Found Corrupted Prototype Device 51730 | -1/Command | Identified AEGIS Remote Shield 51762 | -1/Command | Found Corrupted Prototype Device 51776 | -1/Command | Identified Thermal Barrier 51799 | -1/Command | Found Corrupted Prototype Energy Cannon 51809 | -1/Command | Found Corrupted Prototype Reactor 51809 | -1/Command | Identified Zero-point Reactor 51819 | -1/Command | Found Corrupted Zero-point Reactor 51852 | -1/Command | Identified Cld. Nova Cannon 52125 | -1/Command | Found Corrupted Hvy. Regenerative Plating 52141 | -1/Command | Found Corrupted Cld. Nova Cannon 52144 | -1/Command | Found Corrupted AEGIS Remote Shield 52577 | -1/Command | Build established: Alien-Executioner 53381 | -1/Command | 0b10 Conduit disabled 53392 | -1/Command | Met MAIN.C 53480 | -1/Command | Destroyed MAIN.C Shell 53483 | -1/Command | MAIN.C activated Command garrisons 53534 | -1/Command | Destroyed MAIN.C 53549 | -1/Command | Discovered new exit (range 34) 53549 | -1/Command | Discovered new exit (range 88) 53549 | -1/Command | Extracted map data and part IDs from MAIN.C's data core 53815 | -1/Command | Found Exp. System Purifier 53902 | -1/Command | Phase Generator disabled 54064 | -1/Command | Build established: Alien-Mutant 54546 | -1/Command | Found Prototype Device 54546 | -1/Command | Identified Exp. EM Disruption Field 54591 | -1/Command | Build established: Alien-Gunner 55115 | -1/Command | Build established: Alien-Executioner 55199 | -1/Command | Used Subatomic Replicator to replicate RU-N14's Throwing Claymores v3 55919 | -1/Command | Found Corrupted Prototype Processor 55962 | -1/Command | Identified Exp. Targeting Computer 56306 | -1/Command | Build established: Scavenger-Executioner 57479 | -1/Command | Found Vortex Chain Reactor 57763 | -1/Command | Build established: Alien-Executioner 58025 | -1/Command | Found Quantum Capacitor 58215 | -1/Command | Warped through subspace to slip node 58215 | -1/Command | Discovered new exit (range 4) 58222 | -1/Command | Entered Access_0 58223 | -1/Access_0 | Sensed 3 artifacts in vicinity 58223 | -1/Access_0 | Met Architect 58231 | -1/Access_0 | Destroyed A8 58251 | -1/Access_0 | Destroyed Architect 58252 | -1/Access_0 | Architect triggered a singularity event 58252 | -1/Access_0 | Extracted unknown sensor trigger ID from Architect's data core 58255 | -1/Access_0 | Released all parts (22) 58255 | -1/Access_0 | Found Hpw. Transdimensional Reconstructor 58255 | -1/Access_0 | Warped through subspace to slip node 58255 | -1/Access_0 | Discovered new exit (range 8) 58260 | *** | Escaped singularity! Last Messages --------------- 58255_ Released Exp. Core Analyzer. 58255_ Released Imp. Weapon Cycler. 58255_ Released Imp. Armor Integrity Analyzer. 58255_ Released Hvy. Regenerative Plating. 58255_ Released Imp. Utility Shielding. 58255_ Released Adv. Targeting Computer. 58255_ Released AEGIS Remote Shield. 58255_ Released Vortex Chain Reactor. 58255_ Released Adv. Heavy Siege Treads. 58255_ Released RU-N14's Throwing Claymores v3. 58255_ Released Adv. Targeting Computer. 58255_ Released RU-N14's Throwing Claymores v3. 58255_ Acquired Hpw. Transdimensional Reconstructor. 58255_ Warped through subspace, drawn to slip node. 58255_ EXIT=FOUND 58256_ A0_COM: 7. 58257_ A0_COM: 6. 58258_ A0_COM: 5. 58259_ A0_COM: 4. 58260_ A0_COM: 3. Map ----- +----------------------------------------------------+ | | | | | | | | | | | | | | | | | | | | | | | | | | | | | | | | | ?????????????????????????????????????????????????? | | ?????????????????????????????????????????????????? | | ?????????????????????????????????????????????????? | | ?????????????????????????????????????????????????? | | ?????????????????????????????????????????????????? | | ?????????????????????????????????????????????????? | | ????????????????????????###??????????????????????? | | ???????????????????????## ##?????????????????????? | | ???????????????????????# #?????????????????????? | | ???????????????????????# @ #?????????????????????? | | ??????????????????????## #?????????????????????? | | ??????????????????????# #?????????????????????? | | ??????????????????????# ##?????????????????????? | | ??????????????????????## #?????????????????????? | | ??????????????????????# #?????????????????????? | | ??????????????????????# ##?????????????????????? | | ??????????????????????# < #?????????????????????? | | ??????????????????????# ##?????????????????????? | | ??????????????????????## #??????????????????????? | | ???????????????????????####??????????????????????? | | ?????????????????????????????????????????????????? | | ?????????????????????????????????????????????????? | | ?????????????????????????????????????????????????? | | ?????????????????????????????????????????????????? | | ?????????????????????????????????????????????????? | | ?????????????????????????????????????????????????? | | ?????????????????????????????????????????????????? | | ?????????????????????????????????????????????????? | | ?????????????????????????????????????????????????? | | ?????????????????????????????????????????????????? | | ?????????????????????????????????????????????????? | | ?????????????????????????????????????????????????? | | ?????????????????????????????????????????????????? | | ?????????????????????????????????????????????????? | +----------------------------------------------------+ Best States ------------- Heat Dissipation 85 Coolant Potential 100 Energy Generation 143 Energy Capacity 1330 Matter Stores 300 Matter Capacity 300 Sight Range 22 Robot Scan Range 16 Terrain Scan Range 24 Terrain Scan Density 10 Jamming Range 22 Cloak Strength 4 Armor Coverage 3600 Resistance: KI 30 Resistance: EM 75 Utility Shielding 66 Weapon Shielding 66 Point Defense Rating 240 Weapon Cycling 20 Phase Shifting 15 Evasion (%) 55 Targeting Accuracy 24 Target Analysis 8 Core Analysis 8 Armor Integrity Analysis 40 Recoil Reduction 3 Energy Filtering 50 Particle Charging 25 Kinecelleration 30 Offensive Hacking 28 Item Schematics ----------------- Centrium Wheel | -3/Section 7 | Scanalyzed Robot Schematics ------------------ None Fabricated ------------ Cargo Storage Unit | x1 | -7/Factory Arm. Huge Wheel | x2 | -5/Factory Adv. Shield Generator | x2 | -5/Factory Adv. Shield Generator | x2 | -4/Factory Enh. Nova Cannon | x1 | -4/Factory | Preloaded Quantum Reactor | x2 | -3/Research | Preloaded Alien Tech Used ----------------- Core Expander Integrated Reactor Core Reset Matrix Integrated Thermoelectric Network Microwarp Drive Integrated Dissipator Core Cannon Spacefold Activator LRC Armor Terrabomb Transdimensional Reconstructor Integrity Redistributor Subatomic Replicator High-powered Transdimensional Reconstructor Achievements -------------- Executioner Challenges ------------ None Game ------ Seed ClaymoresDecoyProtection Manual? 0 Play Time 15:09:18 Cumulative 390.8 hours Start 2023.09.17 @ 17:36:57 End 2023.10.01 @ 21:23:20 Sessions 13 Manual Loads 0 Difficulty Rogue Special Mode None Game No. 168 Rogue 168 Adventurer 0 Explorer 0 Win Type 6 Total 18 Types 8/0/3/3/0/0/3/1/0 Lore% 89 Gallery% 92 Achievement% 80 Wizard Run 0 Options --------- ASCII 0 Keyboard 1 Movement Arrows Keybinds 0 Fullscreen 2 Font 18/X11 Map View 76x50 Tactical HUD 1 Map Filters NONE Filters NONE Steam 1 RUN: 35c379e8-c508-48b2-a124-5602c1687a35